Workbook

Sheet Klassieke financiering
A1: Goedgekeurde projecten klassieke subsidies van 1 januari tot 30 november 2025
A2: Klassieke betoelaging: een voorziening kan een vraag indienen tot het bekomen van investeringsbetoelaging (= subsidiebelofte) voor een beoogde investering. Het bedrag van de investeringsbetoelaging wordt aangerekend op de VIPA-kredieten op het moment van het verlenen van de subsidiebelofte. De subsidiebetalingen gebeuren in 5 schijven op basis van voorgelegde facturen. De subsidiebelofte wordt met 50% geïndexeerd op het moment van het aanvangsbevel van de werken en 50% op het moment van de ingebruikname.
A3: Frequentie van actualisatie van deze lijst: maandelijks (begin van de maand).
A4: Dossiernummer | B4: Provincie | C4: Gemeente voorziening | D4: Initiatiefnemer | E4: Voorziening | F4: Project | G4: Verleende subsidiebeloften | H4: Goedkeuring
A5: Voorzieningen Opgroeien | G5: =SUM(G6:G36) -> 20137619.47
A6: BJB162-A-MV | B6: Antwerpen | C6: Antwerpen | D6: Pleegzorg Provincie Antwerpen vzw | E6: Pleegzorg Provincie Antwerpen - afdeling Antwerpen-Zuid | F6: verbouwing van een kantoorgebouw in de Heilig Hartstraat 12-14 en de Uitbreidingstraat 184 in Antwerpen | G6: 73279.55 | H6: aanvullende belofte door indexering na ingebruikname 17/01/2025
A7: 20K145 | B7: Limburg | C7: Halen | D7: Familiehulp kinderopvang De Speelboom vzw | E7: De Speelboom Halen | F7: voltooiingswerken voor het Kinderdagverblijf 't Pagadderke voor 28 plaatsen (capaciteitsvervanging) in de Doelstraat 26-30 te Halen | G7: 67913.14 | H7: aanvullende belofte door indexering na ingebruikname 30/01/2025
A8: 20K059 | B8: Brussel | C8: Schaarbeek | D8: t Pasrel vzw | E8: Onthaal-, Oriëntatie- en Observatiecentrum 't Pasrel | F8: nieuwbouw voor het Onthaal-, Oriëntatie- en Observatiecentrum 't Pasrel Brussel in de Wilderstraat in Sint-Agatha-Berchem | G8: 14577.23475 | H8: aanvullende belofte door indexering na aanvangsbevel 5/02/2025
A9: 22K041 | B9: West-Vlaanderen | C9: Oostende | D9: Familiehulp Kinderopvang De Speelboom vzw | E9: De Speelboom Oostende-Centrum | F9: nieuwbouw van een kinderdagverblijf met 87 plaatsen (capaciteitsvervanging) op het Mispelplein in Oostende | G9: 64558.35035 | H9: aanvullende belofte door indexering na aanvangsbevel 12/02/2025
A10: 22K060 | B10: Oost-Vlaanderen | C10: Sint-Niklaas | D10: Kaldoun BVBA | E10: Het Droomwolkje 3 | F10: uitbreiding voor de Kinderopvang Het Droomwolkje 3 met 17 plaatsen (capaciteitsvervanging) in de Boonhemstraat 2 in Sint-Niklaas | G10: 6791.831907 | H10: aanvullende belofte door indexering na aanvangsbevel 12/02/2025
A11: 22K013 | B11: Limburg | C11: Kinrooi | D11: Jeugdzorgcentrum vzw | E11: Organisatie voor Bijzondere Jeugdzorg Jeugdzorgcentrum | F11: nieuwbouw van een jeugdzorgcentrum voor 20 jongeren (capaciteitsvervanging) in de Spoorwegstraat 20-22 in Maaseik | G11: 31160.07 | H11: aanvullende belofte door indexering na aanvangsbevel 18/02/2025
A12: 23K051 | B12: Vlaams-Brabant | C12: Sint-Genesius-Rode | D12: Consolata Regio Sint-Genesius-Rode vzw | E12: 't Kapoentje | F12: nieuwbouw van een kinderdagverblijf voor 23 plaatsen (capaciteitsuitbreiding) op Zorgsite Sint-Genesius-Rode in de Zoniënwoudlaan in Sint-Genesius-Rode | G12: 5221.803474 | H12: aanvullende belofte door indexering na aanvangsbevel 28/02/2025
A13: 21K039 | B13: Antwerpen | C13: Temse | D13: Helan Kinderopvang vzw | E13: Helan Kinderopvang - Tijgertuin | F13: ingrijpende duurzame verbouwing voor kinderopvang Tijgertuin met 28 plaatsen in de Antwerpsestraat 180 in Temse | G13: 1025.5 | H13: aanvullende belofte door indexering na aanvangsbevel 28/02/2025
A14: 20K023 | B14: Antwerpen | C14: Brasschaat | D14: Kinderdagverblijf Augustijntje vzw | E14: Augustijntje | F14: nieuwbouw van een kinderopvang voor 28 plaatsen in de Augustijnslei 54 in Brasschaat | G14: 633344.92 | H14: 2025-03-24
A15: 23K012 | B15: Limburg | C15: Gingelom | D15: OCMW Gingelom | E15: Minimax | F15: verbouwing van de kinderopvang Minimax met 40 plaatsen op de Steenweg 107 - 109 - 111 in Gingelom | G15: 6073.06 | H15: 2025-03-24
A16: 20K185 | B16: Brussel | C16: Sint-Jans-Molenbeek | D16: De Molenketjes vzw | E16: Arion | F16: nieuwbouw voor Kinderopvang Arion met uitbreiding van 28 naar 45 plaatsen in de Lessenstraat 37-39 in Sint-Jans-Molenbeek | G16: 41491.07 | H16: aanvullende belofte door indexering na aanvangsbevel 8/05/2025
A17: 20K148 | B17: Oost-Vlaanderen | C17: Aalter | D17: Kinderopvang Scholengroep Meetjesland vzw | E17: Meneer Koekepeer | F17: nieuwbouw van een kinderopvang voor 21 plaatsen in de Aalterseweg 1 in Aalter (Knesselare) | G17: 6913.476572 | H17: aanvullende belofte door indexering na aanvangsbevel 9/05/2025
A18: 20K146 | B18: Limburg | C18: Hasselt | D18: Kinderdagverblijf Klein Hemelrijk vzw | E18: Klein Hemelrijk | F18: nieuwbouw voor Kinderdagverblijf Klein Hemelrijk voor 25 plaatsen in de Overmerelaan 14 in Hasselt | G18: 36879.29 | H18: aanvullende belofte door indexering na ingebruikname 9/05/2025
A19: 23K002 | B19: Oost-Vlaanderen | C19: Gent | D19: Stad Gent | E19: Kinderdagverblijf Tondelier | F19: nieuwbouw voor het Kinderdagverblijf Tondelier met 54 plaatsen (capaciteitsuitbreiding) in de Gasmeterlaan 106 in Gent | G19: 1308005.35 | H19: 2025-06-03
A20: 24K048 | B20: Vlaams-Brabant | C20: Pajottegem | D20: Pierrot vzw | E20: Pierrot 3 | F20: voltooiingswerken voor een kinderopvang voor 25 plaatsen in Kerkhove 51 in Bever | G20: 375875.32 | H20: 2025-06-03
A21: 22K050 | B21: Antwerpen | C21: Antwerpen | D21: Vrije Kinderdagverblijven Antwerpen vzw | E21: De Kleine Luchtballon | F21: nieuwbouw voor het Kinderdagverblijf De Kleine Luchtballon voor 30 plaatsen (capaciteitsvervanging) in de Lodewijk De Vochtstraat 15A in Antwerpen (Ekeren) | G21: 1232576.48 | H21: 2025-06-26
A22: 21K067 | B22: Oost-Vlaanderen | C22: Nazareth | D22: Jeugdhulp Don Bosco Vlaanderen vzw | E22: Centrum voor Kinderzorg- en Gezinsondersteuning 't Kinderkasteeltje | F22: nieuwbouw voor het Centrum voor Kinderzorg- en Gezinsondersteuning 't Kinderkasteeltje met 18 plaatsen (capaciteitsvervanging) in de Drapstraat 49 in Nazareth | G22: 20516.46 | H22: aanvullende belofte door indexering na aanvangsbevel 10/07/2025
A23: 24K073 | B23: Oost-Vlaanderen | C23: Nazareth | D23: Jeugdhulp Don Bosco Vlaanderen vzw | E23: 't Kinderkasteeltje | F23: nieuwbouw voor Kinderopvang 't Kinderkasteeltje met 52 plaatsen (capaciteitsvervanging) in de Drapstraat 49 in Nazareth | G23: 21085.09 | H23: aanvullende belofte door indexering na aanvangsbevel 10/07/2025
A24: 24K076 | B24: Vlaams-Brabant | C24: Leuven | D24: De Wissel vzw | E24: Organisatie voor bijzondere jeugdzorg De Wissel | F24: innoverend project 'De Boomgaard' met de nieuwbouw voor de Organisatie voor bijzondere jeugdzorg in een modulair kader De Wissel voor 6 jongeren op de Wilsesteenweg 68 en de Genadeweg in Kessel-Lo | G24: 601515.83 | H24: 2025-07-23
A25: 23K028 | B25: West-Vlaanderen | C25: Brugge | D25: Kinderopvang Mariawende vzw | E25: Kinderdagverblijf Ons Tuintje | F25: nieuwbouw van een kinderopvang voor 16 plaatsen (capaciteitsvervanging) in de Pastorieweg 19 in Brugge (Sint-Kruis-Brugge) | G25: 675602.78 | H25: 2025-09-02
A26: 22K045 | B26: Antwerpen | C26: Turnhout | D26: Cirkant vzw | E26: Organisatie voor bijzondere jeugdzorg Cirkant | F26: nieuwbouw voor de Organisatie voor bijzondere jeugdzorg in een modulair kader met 20 verblijfplaatsen (capaciteitsvervanging) in Wolfseind 1-5-7 in Arendonk | G26: 3016906.66 | H26: 2025-09-08
A27: 20K143 | B27: Limburg | C27: Genk | D27: Kinderdagverblijf Familia vzw | E27: Pardijntje | F27: nieuwbouw van een kinderdagverblijf met 108 plaatsen voor 6 groepen en een logistiek en administratief centrum in de Halmstraat 3-5-7 (Minderbroedersite) in Genk | G27: 4723322.18 | H27: 2025-09-08
A28: 23K034 | B28: Brussel | C28: Ukkel | D28: Scholengroep 8: Brussel | E28: Floreal | F28: nieuwbouw voor Kinderopvang Floreal voor 54 plaatsen (23 plaatsen capaciteitsuitbreiding en 31 plaatsen capaciteitsvervanging) in de Floréallaan 14 in Ukkel | G28: 1477720.34 | H28: 2025-09-08
A29: 24K133 | B29: Limburg | C29: Genk | D29: Kinderdagverblijf Familia vzw | E29: Pardijntje | F29: nieuwbouw van een kinderdagverblijf met 108 plaatsen voor 6 groepen in de Vennestraat 459 in Genk | G29: 2709799.65 | H29: 2025-09-08
A30: 23K027 | B30: Antwerpen | C30: Berlaar | D30: Engeltjes en Bengeltjes BV | E30: Engeltjes en Bengeltjes 3 | F30: nieuwbouw voor een kinderopvang met 36 plaatsen (14 plaatsen capaciteitsuitbreiding en 22 plaatsen capaciteitsvervanging) in de Aarschotsebaan 208 in Berlaar | G30: 7237.862427 | H30: aanvullende belofte door indexering na aanvangsbevel 24/09/2025
A31: 22K001 | B31: Antwerpen | C31: Geel | D31: De Waaiburg vzw | E31: Organisatie voor bijzondere jeugdzorg De Waaiburg | F31: ingrijpende duurzame verbouwing en uitbreiding (capaciteitsvervanging) van het bestaand administratief hoofdgebouw voor de Organisatie voor bijzondere jeugdzorg De Waaiburg in de Kameinestraat 35 in Geel | G31: 19304.26376 | H31: aanvullende belofte door indexering na aanvangsbevel 3/10/2025
A32: 21K019 | B32: Limburg | C32: Hasselt | D32: De Hummeltjes vzw | E32: De Hummeltjes | F32: nieuwbouw voor het Kinderdagverblijf Het Hummelhof met 35 plaatsen (capaciteitsvervanging) in de Steenaartberg 3 in Sint-Truiden | G32: 79337.47 | H32: gewijzigde belofte 30/11/2025
A33: 24K096 | B33: Vlaams-Brabant | C33: Leuven | D33: Zorg Leuven | E33: De Warande | F33: verbouwing van de 3° verdieping voor het Kinderdagverblijf Warande voor 30 plaatsen (capaciteitsvervanging) in de Warandelaan 2 in Leuven (Kessel-Lo) | G33: 736522.51 | H33: 2025-10-23
A34: 24K106 | B34: Vlaams-Brabant | C34: Leuven | D34: Monte Rosa vzw | E34: Monte Rosa Deurne | F34: nieuwbouw van 2 residentiële leefgroepen voor 17 kinderen en jongeren (14 capaciteitsvervanging en 3 capaciteitsuitbreiding) voor de Organisatie voor bijzondere jeugdzorg in een modulair kader De Vlieger in de Drakenhoflaan 246-248 in Antwerpen (Deurne) | G34: 858196.97 | H34: gewijzigde belofte 30/11/2025
A35: 24K012 KG-Marlies | B35: West-Vlaanderen | C35: Kortrijk | D35: Kinderdagverblijf Het Darteltje BV | E35: Het Darteltje | F35: aankoop met verbouwing voor Kinderopvang Het Darteltje met 90 plaatsen in de Kortrijksestraat 415 + in Kortrijk (Bissegem) | G35: 1049277.96 | H35: 2025-11-11
A36: 24K095 KO-Marlies | B36: Vlaams-Brabant | C36: Leuven | D36: Zorg Leuven | E36: Kinderdagverblijf DoRemy | F36: verbouwing voor Kinderopvang DoRemy met 15 plaatsen (capaciteitsuitbreiding) in de Frederik Lintsstraat 33 in Leuven | G36: 235587 | H36: SLO 30/11/2025
A37: Voorzieningen voor Centra voor Algemeen Welzijnswerk | G37: =SUM(G38:G39) -> 1106665.571
A38: 24K063 | B38: Oost-Vlaanderen | D38: Centrum Algemeen Welzijnswerk Oost-Vlaanderen vzw | E38: Centrum Algemeen Welzijnswerk Oost-Vlaanderen | F38: nieuwbouw voor de technische dienst voor Sociaal Woonbeleid en verbouwing van 7 studio’s voor tijdelijke dak- en thuislozen in de provincie Oost-Vlaanderen | G38: 1094460.28 | H38: 2025-07-05
A39: 22K027 | B39: Vlaams-Brabant | D39: Centrum Algemeen Welzijnswerk Halle - Vilvoorde vzw | E39: Centrum Algemeen Welzijnswerk Halle - Vilvoorde | F39: nieuwbouw van een crisisopvangcentrum en inloopcentrum (5 studio's en multifunctioneel dagverblijf) voor 10 personen in de provincie Vlaams-Brabant | G39: 12205.29072 | H39: aanvullende belofte door indexering na aanvangsbevel 30/09/2025
A40: Woonzorgvoorzieningen | G40: =SUM(G41:G55) -> 17282131.54
A41: 23K033 | B41: Antwerpen | C41: Geel | D41: OCMW Welzijnszorg Kempen | E41: Welzijnszorg Kempen | F41: nieuwbouw voor een centrum voor dagopvang op de campus Lindelo op het Kerkplein 20 B in Lille | G41: 3274.64 | H41: aanvullende belofte door indexering na aanvangsbevel 6/01/2025
A42: 21K054 | B42: Antwerpen | C42: Grobbendonk | D42: OCMW Grobbendonk | E42: Lokaal Dienstencentrum OCMW Grobbendonk | F42: nieuwbouw van een antennepunt voor een bestaand lokaal dienstencentrum in de Kasteeldreef 1 in Grobbendonk (Bouwel) | G42: 8442.145654 | H42: aanvullende belofte door indexering na aanvangsbevel 5/02/2025
A43: 23K006 | B43: Antwerpen | C43: Duffel | D43: OCMW Duffel | E43: Lokaal Dienstecentrum Duffel | F43: uitbreiding en verbouwing van een lokaal dienstencentrum (capaciteitsuitbreiding) in de Kwakkelenberg 3 in Duffel | G43: 10177.11558 | H43: aanvullende belofte door indexering na aanvangsbevel 28/02/2025
A44: 22K039 | B44: Antwerpen | C44: Balen | D44: OCMW Balen | E44: Lokaal Dienstencentrum | F44: nieuwbouw van een lokaal dienstencentrum in de Rozestraat 11 in Balen | G44: 25095.40618 | H44: aanvullende belofte door indexering na aanvangsbevel 4/03/2025
A45: 23K020 | B45: Limburg | C45: Lummen | D45: OCMW Lummen | E45: Lokaal Dienstencentrum 't Klavertje | F45: nieuwbouw (vervanging) voor het Lokaal Dienstencentrum 't Klavertje in de Dr. Vanderhoeydonckstraat 56 in Lummen | G45: 11196.75062 | H45: aanvullende belofte door indexering na aanvangsbevel 17/06/2025
A46: OZ114-L-TD | B46: Limburg | C46: Leopoldsburg | D46: Vitas | E46: Dagverzorgingscentrum De Kiosk | F46: nieuwbouw (vervanging) van het Dagverzorgingscentrum De Kiosk in De Wittellaan te Leopoldsburg | G46: 53394.99 | H46: aanvullende belofte door indexering na ingebruikname 23/06/2025
A47: 20K026 | B47: West-Vlaanderen | C47: Brugge | D47: Woonzorgnetwerk Spirit vzw | E47: Centrum voor Dagverzorging Rozemarijn | F47: nieuwbouw (capaciteitsvervanging) van het Dagverzorgingscentrum Rozemarijn voor mensen met jongdementie in de Koning Leopold III-laan 4 in Brugge | G47: 480555.79 | H47: 2025-07-05
A48: BZ685-O-MV | B48: Oost-Vlaanderen | C48: Eeklo | D48: Zorg-Saam zusters Kindsheid Jesu vzw | E48: Dagverzorgingscentrum De Koraal | F48: nieuwbouw (vervanging) voor het Dagverzorgingscentrum De Koraal in de Moeie 18-20 in Eeklo | G48: 482294.56 | H48: 2025-06-27
A49: 24K085 | B49: Vlaams-Brabant | C49: Leuven | D49: Woonzorgnet-Dijleland vzw | E49: Woonzorgcentrum De Wingerd | F49: innoverend project 'De Boomgaard' met de nieuwbouw voor het Woonzorgcentrum De Wingerd voor 5 bedden op de Wilsesteenweg 68 en de Genadeweg in Kessel-Lo | G49: 501263.19 | H49: 2025-07-23
A50: BZ700-L-MV | B50: Limburg | C50: Sint-Truiden | D50: Lokaal Dienstencentrum Sint-Anna vzw | E50: Lokaal Dienstencentrum Sint-Anna | F50: nieuwbouw van het Lokaal Dienstencentrum Sint-Anna in de Abdijstraat te Sint-Truiden | G50: 25095.41 | H50: aanvullende belofte door indexering na aanvangsbevel 9/09/2025
A51: 23K003 | B51: Antwerpen | C51: Mechelen | D51: Zorgbedrijf Rivierenland | E51: Hof van Egmont | F51: nieuwbouw (vervanging) voor het Dagverzorgingscentrum De Kade en het Lokaal Dienstencentrum De Rooster (beide capaciteitsvervanging) voor Zorgbedrijf Rivierenland in de Zwartzustersvest 47 in Mechelen | G51: 1542863.46 | H51: 2025-10-21
A52: 21K030 | B52: Brussel | C52: Anderlecht | D52: Cosmos-Excelsior vzw | E52: Lokaal Dienstencentrum Vives | F52: ingrijpende duurzame verbouwing voor het Lokaal Dienstencentrum Vives op het Martin Luther Kingplein 1 in Anderlecht | G52: 25095.40618 | H52: aanvullende belofte door indexering na aanvangsbevel 23/10/2025
A53: 22K085 OZ-Marlies | B53: Antwerpen | C53: Zandhoven | D53: Pulderbos Revalidatiecentrum voor kinderen en jongeren vzw | E53: Limmerik | F53: nieuwbouw voor het Centrum voor Kortverblijf type 3 'Limmerik' met 7 verblijfseenheden (capaciteitsvervanging) in de Langestraat 170 in Zandhoven | G53: 729734.93 | H53: 2025-11-18
A54: 24K031 OZ-Marlies | B54: Antwerpen | C54: Zandhoven | D54: Kristelijke Mutualistische Interfederale vzw | E54: Centrum voor Herstelverblijf CM-Zorgverblijf Hooidonk | F54: nieuwbouw voor het Centrum voor Herstelverblijf Hooidonk met 120 bedden (capaciteitsvervanging) in de Langestraat 172 in Zandhoven | G54: 13371483.28 | H54: 2025-11-18
A55: 21K071 Hannelore | B55: Oost-Vlaanderen | C55: Laarne | D55: OCMW Zorgband Leie en Schelde | E55: Lokaal Dienstencentrum 't Binnenhof | F55: nieuwbouw (vervanging) voor het Lokaal Dienstencentrum 't Binnenhof in de Oostremstraat in Laarne | G55: 12164.47 | H55: aanvullende belofte door indexering na aanvangsbevel 6/11/2025
A56: Voorzieningen voor Preventieve en ambulante Gezondheidszorg | G56: =SUM(G57:G64) -> 4861008.875
A57: 21K063 | B57: Brussel | C57: Sint-Jans-Molenbeek | D57: Wijkgezondheidscentrum De Brug vzw | E57: Wijkgezondheidscentrum De Brug | F57: uitbreiding en een beperkte verbouwing voor het Wijkgezondheidscentrum De Brug in de Onafhankelijkheidsstraat 142-144 in Sint-Jans-Molenbeek | G57: 16622.72993 | H57: aanvullende belofte door indexering na aanvangsbevel 5/02/2025
A58: 21K010 | B58: Antwerpen | C58: Lier | D58: Wijkgezondheidscentrum De Zilveren Knoop vzw | E58: Wijkgezondheidscentrum De Zilveren Knoop | F58: ingrijpende duurzame verbouwing en uitbreiding voor het Wijkgezondheidscentrum De Zilveren Knoop, met minder dan 2.000 patiënten, in de Lisperstraat 108 in Lier | G58: 16730.27096 | H58: aanvullende belofte door indexering na aanvangsbevel 24/02/2025
A59: 20K171 | B59: Antwerpen | C59: Antwerpen | D59: Centrum voor Geestelijke Gezondheidszorg Andante vzw | E59: Centrum voor Geestelijke Gezondheidszorg Andante | F59: ingrijpende duurzame verbouwing en uitbreiding van de brouwerijsite voor het Centrum voor Geestelijke Gezondheidszorg Andante in de Hertstraat 5 in Antwerpen (Deurne) | G59: 94571.87962 | H59: aanvullende belofte door indexering na aanvangsbevel 18/03/2025
A60: 20K175 | B60: Antwerpen | C60: Mechelen | D60: Wel en Wee vzw | E60: Wijkgezondheidscentrum Wel en Wee | F60: nieuwbouw voor het Wijkgezondheidscentrum Wel en Wee voor 2.500 patiënten in de Zwartzustersvest 47 in Mechelen | G60: 1114290.28 | H60: 2025-04-05
A61: 23K019 | B61: Antwerpen | C61: Antwerpen | D61: Wijkgezondheidscentrum 't Spoor vzw | E61: Wijkgezondheidscentrum 't Spoor | F61: verbouwing voor het Wijkgezondheidscentrum 't Spoor met 3.500 patiënten in de Guldensporenstraat 84 in Antwerpen (Borgerhout) | G61: 412801.1 | H61: 2025-09-02
A62: 21K041 | B62: Antwerpen | C62: Antwerpen | D62: Geneeskunde voor het Volk vzw | E62: Wijkgezondheidscentrum Geneeskunde voor het volk | F62: uitbreiding en ingrijpende energetische verbouwing van een wijkgezondheidscentrum met 5.100 patiënten (en 5 disciplines) voor Geneeskunde voor het Volk in de Sint-Rochusstraat 55-57-59 in Antwerpen (Deurne) | G62: 38796.71442 | H62: aanvullende belofte door indexering na aanvangsbevel 7/10/2025
A63: 23K063 | B63: Vlaams-Brabant | C63: Leuven | D63: De Hulster vzw | E63: De Hulster | F63: ingrijpende duurzame verbouwing van het project 'Welzijnstoren' voor het aanloopadres Beschut Wonen De Hulster op de Hertogensite in de Kapucijnenvoer 33 te Leuven. | G63: 675431.33 | H63: 2025-10-21
A64: 23K064 | B64: Vlaams-Brabant | C64: Leuven | D64: Centrum voor Geestelijke Gezondheidszorg Vlaams-Brabant Oost vzw | E64: Centrum voor Geestelijke Gezondheidszorg Vlaams-Brabant Oost | F64: ingrijpende duurzame verbouwing van het project 'Welzijnstoren' voor een centrum voor geestelijke gezondheidszorg op de Hertogensite in de Kapucijnenvoer 33 in Leuven | G64: 2491764.57 | H64: 2025-10-21
A65: Voorzieningen voor Personen met een handicap | G65: =SUM(G66:G88) -> 8918838.159
A66: 20K177 | B66: West-Vlaanderen | C66: Zedelgem | D66: Inspirant vzw | E66: Multifunctioneel Centrum Inspirant | F66: uitbreiding van het Multifunctioneel Centrum Inspirant met een internaat voor 5 minderjarigen (capaciteitsvervanging) in de Sportlaan 20 in Zedelgem (Aartrijke) | G66: 111198.49 | H66: aanvullende belofte door indexering na ingebruikname 30/01/2025
A67: 21K075 | B67: West-Vlaanderen | C67: Zedelgem | D67: Inspirant vzw | E67: Multifunctioneel Centrum Inspirant | F67: uitbreiding van het Multifunctioneel Centrum Inspirant met een internaat voor 5 minderjarigen (capaciteitsvervanging) in de Sportlaan 20 in Zedelgem (Aartrijke) | G67: 12495.93 | H67: aanvullende belofte door indexering na ingebruikname 30/01/2025
A68: 22K006 | B68: Limburg | C68: Peer | D68: Begeleidingscentrum Sint-Elisabeth vzw | E68: Sint-Elisabeth | F68: nieuwbouw van een Multifunctioneel Centrum voor een GES-project voor 20 personen (capaciteitsvervanging) met ernstige gedrags- en emotionele problemen in de Sint-Elisabethlaan 20 in Peer (Wijchmaal) | G68: 45698.63704 | H68: aanvullende belofte door indexering na aanvangsbevel 11/03/2025
A69: 24BU024 | B69: West-Vlaanderen | C69: Oostende | D69: Centrum voor Ambulante Revalidatie Stappie vzw | E69: Centrum voor Ambulante Revalidatie Stappie | F69: aankoop bijzondere uitrusting: een tympanometer en een Aurical Hitbox voor het Centrum voor Ambulante Revalidatie Stappie in de Koninginnelaan 55-57 in Oostende | G69: 211.4049163 | H69: aanvullende belofte door indexering na bestelling 24/03/2025
A70: 20K020 | B70: Oost-Vlaanderen | C70: Lokeren | D70: Zorg en Onderwijs De Hagewinde vzw | E70: De Hagewinde | F70: nieuwbouw van 2 zorggroepen voor 22 verblijfplaatsen (capaciteitsvervanging) in de Poststraat 6 in Lokeren | G70: 243989.09 | H70: aanvullende belofte door indexering na aanvangsbevel 25/03/2025
A71: 24BU122 | B71: Oost-Vlaanderen | C71: Gent | D71: Centrum voor Ambulante Revalidatie Impuls vzw | E71: Centrum voor Ambulante Revalidatie Impuls | F71: aankoop van bijzondere uitrusting: een nieuw computerpark: vervangen van de firewall, laptops, schermen, headsets, beamer en caremanager voor het Centrum voor Ambulante Revalidatie Impuls in de Karel Lodewijk Dierickxstraat 30 in Gent | G71: 37091.06 | H71: 2025-04-05
A72: 24BU123 | B72: Oost-Vlaanderen | C72: Gent | D72: Centrum voor Ambulante Revalidatie Impuls vzw | E72: Centrum voor Ambulante Revalidatie Impuls | F72: aankoop van bijzondere uitrusting: een nieuw computerpark: M365 licenties, Barracuda email en databeveiliging, keyboards en draadloze muizen voor het Centrum voor Ambulante Revalidatie Impuls in de Karel Lodewijk Dierickxstraat 30 in Gent | G72: 27152.18 | H72: 2025-04-05
A73: 24BU124 | B73: Oost-Vlaanderen | C73: Gent | D73: Centrum voor Ambulante Revalidatie Impuls vzw | E73: Centrum voor Ambulante Revalidatie Impuls | F73: aankoop van bijzondere uitrusting: een nieuw computerpark: UPS, Ipads, Desktop, werkuren, onderhoud voor 5 jaar en de aankoop van een interactief spelsysteem (Tovertafel) voor het Centrum voor Ambulante Revalidatie Impuls in de Karel Lodewijk Dierickxstraat 30 in Gent | G73: 35728.36 | H73: 2025-04-05
A74: 24BU129 | B74: Oost-Vlaanderen | C74: Deinze | D74: Centrum voor Ambulante Revalidatie Ter Kouter vzw | E74: Centrum voor Ambulante Revalidatie Ter Kouter | F74: aankoop van bijzondere uitrusting: actualisatie van de huidige ICT-infrastructuur van een deel van therapeutische equipe en aankoop van een gehoorrevalidatietoestel Aurical Hit Box voor het Centrum voor Ambulante Revalidatie Ter Kouter in Aaltersesteenweg 2 in Deinze | G74: 17201.44 | H74: 2025-04-05
A75: 24BU136 | B75: Oost-Vlaanderen | C75: Gent | D75: Centrum voor Ambulante Revalidatie Oostakker vzw | E75: Centrum voor Ambulante Revalidatie Oostakker | F75: aankoop van bijzondere uitrusting: 30 laptops met toebehoren, 12 monitors, 4 I-pads en 5-jarige Microsoft 365 Business Premium licenties (via social ware) en back up cloud to cloud protection voor het Centrum voor Ambulante Revalidatie Oostakker in de Wolfputstraat 110 in Gent (Oostakker) | G75: 34094.34 | H75: 2025-05-13
A76: 24BU139 | B76: Oost-Vlaanderen | C76: Gent | D76: Centrum voor Ambulante Revalidatie Oostakker vzw | E76: Centrum voor Ambulante Revalidatie Oostakker | F76: aankoop van bijzondere uitrusting: 5-jarige gebruikerslicenties en module licenties voor CAReManager voor het Centrum voor Ambulante Revalidatie Oostakker in de Wolfputstraat 110 in Gent (Oostakker) | G76: 15493.76 | H76: 2025-05-13
A77: 24BU137 | B77: Oost-Vlaanderen | C77: Gent | D77: Centrum voor Ambulante Revalidatie Oostakker vzw | E77: Centrum voor Ambulante Revalidatie Oostakker | F77: aankoop van bijzondere uitrusting: netwerkomgeving: firewall, noodbatterij, cloudmigratie en de geraamde werkuren voor de installatie van Microsoft 365, beveiliging, het installeren van de hardware on site, project management en nazorg voor het Centrum voor Ambulante Revalidatie Oostakker in de Wolfputstraat 110 in Gent (Oostakker) | G77: 14405.95 | H77: 2025-05-21
A78: 24BU138 | B78: Oost-Vlaanderen | C78: Gent | D78: Centrum voor Ambulante Revalidatie Oostakker vzw | E78: Centrum voor Ambulante Revalidatie Oostakker | F78: aankoop van bijzondere uitrusting: opzetten van een intranet in een Sharepointomgeving voor het Centrum voor Ambulante Revalidatie Oostakker in de Wolfputstraat 110 in Gent (Oostakker) | G78: 15972 | H78: 2025-05-21
A79: 23K054 | B79: Oost-Vlaanderen | C79: Lievegem | D79: Dienstverleningscentrum De Triangel vzw | E79: Multifunctioneel Centrum De Triangel | F79: nieuwbouw (vervanging) van 5 clusters voor 42 jongeren in de Molendreef 16 in Lievegem | G79: 4697088.05 | H79: 2025-05-21
A80: 23K050 | B80: Vlaams-Brabant | C80: Tienen | D80: Centrum voor Ambulante Revalidatie D.A.T. vzw | E80: Centrum voor Ambulante Revalidatie D.A.T. | F80: nieuwbouw van een revalidatiecentrum in de Houtemstraat 115b in Tienen | G80: 940306.69 | H80: 2025-06-03
A81: 24BU083 | B81: West-Vlaanderen | C81: Nieuwpoort | D81: Centrum voor Ambulante Revalidatie Houtland-Westkust vzw | E81: Elora Centrum voor Ambulante Revalidatie | F81: aankoop van bijzondere uitrusting: 10 laptops, monitors, toetsenborden en muizen, 10 x Microsoft Cloud 0365, NAS DS1821+, 4 x NAS Schijven WD RED PLUS 12TB, installatie van de computers, hard- en software voor het therapeutisch personeel van het Elora Centrum voor Ambulante Revalidatie in de Duinkerkestraat 40 in Nieuwpoort | G81: 19652.74 | H81: 2025-07-05
A82: 24BU084 | B82: West-Vlaanderen | C82: Nieuwpoort | D82: Centrum voor Ambulante Revalidatie Houtland-Westkust vzw | E82: Elora Centrum voor Ambulante Revalidatie | F82: aankoop van bijzondere uitrusting: 10 laptops, monitors, toetsenborden en muizen, 10 x Microsoft Cloud 0365, installatie van de computers, hard- en software voor het therapeutisch personeel van het Elora Centrum voor Ambulante Revalidatie in de Duinkerkestraat 40 in Nieuwpoort | G82: 18032.39 | H82: 2025-07-05
A83: 23K040 | B83: West-Vlaanderen | C83: Houthulst | D83: De Vleugels vzw | E83: De Vleugels | F83: nieuwbouw van een multifunctioneel centrum voor 20 jongeren (capaciteitsvervanging) in de Elisabethstraat 1 in Houthulst (Klerken) | G83: 31435.69852 | H83: aanvullende belofte door indexering na ingebruikname 4/07/2025
A84: 24K086 | B84: Vlaams-Brabant | C84: Herent | D84: Oostrem vzw | E84: Oostrem | F84: innoverend project 'De Boomgaard' met een nieuwbouw voor 25 plaatsen voor het Multifunctioneel Centrum Oostrem op de Wilsesteenweg 68 en de Genadeweg in Leuven (Kessel-Lo) | G84: 2506315.93 | H84: 2025-07-23
A85: 21K026 | B85: Antwerpen | C85: Ranst | D85: Emmaüs vzw | E85: Dienstverleningscentrum Zevenbergen | F85: nieuwbouw van een multifunctioneel centrum (internaat) met 6 plaatsen (capaciteitsvervanging) in de Boerenkrijglaan 25 in Ranst | G85: 6476.143332 | H85: aanvullende belofte door indexering na aanvangsbevel 12/09/2025
A86: 21K061 | B86: Limburg | C86: Maaseik | D86: Koninklijk Ondersteuningscentrum Ter Engelen Tevona vzw | E86: Covida | F86: aankoop met verbouwing voor een dagcentrum, internaat en semi-internaat in de IQ-Parklaan 6a, Blok D in Dilsen-Stokkem | G86: 35182.83 | H86: aanvullende belofte door indexering na aanvangsbevel 12/09/2025
A87: 24BU002 | B87: West-Vlaanderen | C87: Zedelgem | D87: Centrum voor Ambulante Revalidatie Houtland - Westkust vzw | E87: Centrum voor Ambulante Revalidatie 't Veld | F87: aankoop bijzondere uitrusting: 10 laptops inclusief software en toebehoren voor het Centrum voor Ambulante Revalidatie 't Veld in de Ichtegemsestraat 32 in Zedelgem | G87: 480.9649962 | H87: aanvullende belofte door indexering na bestelling 12/09/2025
A88: 23K050 | B88: Vlaams-Brabant | C88: Tienen | D88: Centrum voor Ambulante Revalidatie D.A.T. vzw | E88: Centrum voor Ambulante Revalidatie D.A.T. | F88: nieuwbouw (vervanging) van een revalidatiecentrum in de Houtemstraat 115b in Tienen | G88: 53134.08 | H88: gewijzigde belofte 30/11/2025
A89: Psychiatrische Verzorgingstehuizen | G89: =SUM(G90:G91) -> 49361.4144
A90: 20K180 | B90: Oost-Vlaanderen | C90: Zelzate | D90: Organisatie Broeders van Liefde vzw | E90: Psychiatrisch Verzorgingstehuis Sint-Jan-Baptist | F90: nieuwbouw van een dag- en nachtverblijf met 11 plaatsen (capaciteitsvervanging) voor het Psychiatrisch Verzorgingstehuis Grijphoek van het Psychiatrisch Centrum Sint-Jan-Baptist in de Grijphoek in Zelzate | G90: 15481.15057 | H90: aanvullende belofte door indexering na aanvangsbevel 18/09/2025
A91: 20K032 | B91: Antwerpen | C91: Boechout | D91: Organisatie Broeders van Liefde vzw | E91: Psychiatrisch Ziekenhuis Multiversum | F91: nieuwbouw voor 20 zorggebruikers (capaciteitsvervanging) voor het Psychiatrisch Verzorgingstehuis Multiversum in de Asberglaan 2 in Boechout | G91: 33880.26383 | H91: aanvullende belofte door indexering na aanvangsbevel 15/10/2025
A92: Revalidatieovereenkomsten | G92: =SUM(G93) -> 16292638.08
A93: 25K054 REV-OV-Marlies | B93: Antwerpen | C93: Zandhoven | D93: Revalidatiecentrum Pulderbos voor kinderen en jongeren vzw | E93: Revalidatiecentrum Pulderbos | F93: nieuwbouw voor Kinderrevalidatie Pulderbos met 96 bedden (capaciteitsvervanging) in de Langestraat 172 in Zandhoven | G93: 16292638.08 | H93: 2025-11-18
F94: Totaal goedgekeurde investeringen | G94: =SUM(G5,G37,G40,G56,G65,G89,G92) -> 68648263.12
B96: Overzicht per provincie | F96: subsidiebelofte | G96: =IFERROR(KLEUR($G$6:$G$95,2,F96),0) -> 66350246
B97: Antwerpen | C97: =SUMIF($B$5:$B$95,B97,$G$5:$G$95) -> 38684930.95 | F97: wijziging belofte of technische rechtzetting | G97: =IFERROR(KLEUR($G$6:$G$95,2,F97),0) -> 990669
B98: Limburg | C98: =SUMIF($B$5:$B$95,B98,$G$5:$G$95) -> 7825053.478 | F98: aanvullende belofte reële registratie- en notariskosten | G98: =IFERROR(KLEUR($G$6:$G$95,2,F98),0) -> 0
B99: Oost-Vlaanderen | C99: =SUMIF($B$5:$B$95,B99,$G$5:$G$95) -> 8105928.899 | F99: indexering na aanvangsbevel | G99: =IFERROR(KLEUR($G$6:$G$95,2,F99),0) -> 920752
B100: Vlaams-Brabant | C100: =SUMIF($B$5:$B$95,B100,$G$5:$G$95) -> 9993340.514 | F100: indexering na ingebruikname | G100: =IFERROR(KLEUR($G$6:$G$95,2,F100),0) -> 386597
B101: West-Vlaanderen | C101: =SUMIF($B$5:$B$95,B101,$G$5:$G$95) -> 2463502.499 | F101: in circulatie naar IF of naar minister of naar SG | G101: =IFERROR(KLEUR($G$6:$G$95,2,F101),0) -> 0
B102: Totaal | C102: =SUM(C97:C101) -> 67072756.34 | F102: dossiers on hold
G103: =SUM(G96:G101) -> 68648264
B104: Brussel | C104: =SUMIF($B$5:$B$95,B104,$G$5:$G$95) -> 1575506.781
B105: Algemeen totaal | C105: =SUM(C102,C104) -> 68648263.12

Sheet Agressie-subsidies
A1: Verleende agressiesubsidies van 1 januari tot 30 november 2025
A2: Subsidies voor preventie van agressie, vrijheidsbeperking of vrijheidsberoving: Voorzieningen met een verblijfsfunctie die werken met minderjarigen kunnen VIPA-subsidies aanvragen voor projecten van preventieve infrastructurele maatregelen inzake agressie, vrijheidsbeperking of vrijheidsberoving. De investeringssubsidie bedraagt 75% van de kostenraming (excl. BTW) van het project met een maximumbedrag van 175.000 euro voor voorzieningen met minder dan 50 personen vermeerderd met 2.500 euro per verblijfsplaats voor voorzieningen vanaf 50 personen. De aanrekening op de VIPA-kredieten gebeurt op het moment van de toezegging.
A3: Frequentie van actualisatie van deze lijst: als er een oproep is geweest en de middelen daarvoor zijn vastgelegd (1 keer per jaar).
A4: Dossiernummer | B4: Provincie | C4: Gemeente | D4: Initiatiefnemer | E4: Voorziening | F4: Sector | G4: Project | H4: Verleende agressiedossiers (exclusief BTW) | I4: Goedkeuring
A5: PVA 001 tris | B5: Vlaams-Brabant | C5: Leuven (Heverlee) | D5: Medisch Pedagogisch Centrum Priorij Ter Bank vzw | E5: Medisch Pedagogisch Centrum Priorij Ter Bank | F5: Opgroeien en VAPH | G5: Buiteninrichting: een traumasensitieve inrichting van de tuin Binneninrichting: agressie beperking door multimedia op de kamers | H5: 101264 | I5: 2025-07-07
A6: PVA 002 tris | B6: Vlaams-Brabant | C6: Tienen | D6: Stichting M.M. Delacroix | E6: Stichting M.M. Delacroix | F6: Opgroeien en VAPH | G6: Buiteninrichting: tuintherapie | H6: 72812.84 | I6: 2025-07-07
A7: PVA 003 tris | B7: West-Vlaanderen | C7: Kortrijk | D7: De Hoge Kouter vzw | E7: MFC De Hoge Kouter vza | F7: VAPH | G7: Buiteninrichting: trampoline Binneninrichting: 1.alarm en oproepsysteem 2.tavaruimte 3.rustruimte 4.prikkelarme omgeving realiseren: akoestische wanden 5.maatregel voor de uitrusting binnenruimte - aangepast meubilair en tools | H7: 24736.76 | I7: 2025-07-07
A8: PVA 008 tris | B8: Limburg | C8: Sint-Truiden | D8: Zorggroep Myna vzw | E8: Zorggroep Myna | F8: ELGEZ | G8: Buiteninrichting: vergroening binnentuinen voor opnameafdelingen Orion 1 en 2 Binneninrichting: 1.inrichten comfortkamer Orion 3 2.inrichten comfortkamers spika 1 leefgroepen 1 en 2 | H8: 118054.57 | I8: 2025-07-07
A9: PVA 009 quater | B9: Antwerpen | C9: Mechelen | D9: Emmaus vzw | E9: Jeugdzorg Emmaus Mechelen | F9: Opgroeien | G9: Binneninrichting: 1.binneninrichting De Aanzet 2.binneninrichting De Vesten | H9: 16662.5 | I9: 2025-07-07
A10: PVA 013 tris | B10: Oost-Vlaanderen | C10: Geraardsbergen | D10: Ons Geluk vzw | E10: Home Magnolia | F10: Opgroeien | G10: Buiteninrichting: installeren van ontspanningsmogelijkheden buitenruimte Binneninrichting: installeren van ontspanningsmogelijkheden binnen | H10: 17475.16 | I10: 2025-07-07
A11: PVA 017 tris | B11: Oost-Vlaanderen | C11: Gent | D11: Organisatie Broeders van Liefde vzw | E11: Zorggroep Guislain | F11: ELGEZ | G11: Buiteninrichting: 1.aanleg tuin intesive dienst psychosezorg (Vadem) 2.aanleg tuin High intensive Care | H11: 154677.68 | I11: 2025-07-07
A12: PVA 018 bis | B12: Limburg | C12: Lummen | D12: Organisatie Broeders van Liefde vzw | E12: Orthopedagogisch Centrum Sint-Ferdinand | F12: Opgroeien en VAPH | G12: Buiteninrichting: 1.aanleg en inrichting van buitenzones, therapeutische tuinen en ruimtes voor spel en ontspanning 2.aanleg en inrichting van een therapeutische tuin, speel- en belevingsweides 3.aanleg en inrichting van therapeutische tuin en ruimte voor sport, spel en ontspanning 4.aanleg en inrichting van therapeutische tuin en ruimte voor sport, spel en ontspanning Binneninrichting: 1.inrichting van een comfortroom en een multifunctioneel lokaal 2.koppelen van bestaand oproepsysteem op het aanwezige IP-DECT systeem inclusief visualisatie | H12: 261140.27 | I12: 2025-07-07
A13: PVA 019 quater | B13: West-Vlaanderen | C13: Poperinge | D13: De Lovie vzw | E13: De Lovie | F13: Opgroeien en VAPH | G13: Buiteninrichting: 1.buitenaanleg Linde 2.installatie van een beweegbank Binneninrichting: installatie oproep- en afluistersysteem (Televic) in verschillende leefgroepen. | H13: 52537.13 | I13: 2025-07-07
A14: PVA 020 quater | B14: Oost-Vlaanderen | C14: Gent | D14: Universitair Ziekenhuis Gent (Onderdeel van Universiteit Gent) | E14: Dienst Volwassenpsychiatrie (Afdeling Angst, Dwang en Stemmingsstoornissen, Spoedpsychiatrie, Dagcentrum) en Dienst Kinder- en Jeugdpsychiatrie van het UZ Gent | F14: ELGEZ | G14: Buiteninrichting: tuinelementen Kinder- en Jeugdpsychiatrie Binneninrichting: 1.comfortroom Afdeling Angst, Dwang en Stemmingsstoornissen 2.comfortroom Dagcentrum Angst, Dwang en stemmingsstroornissen en Eetstoornissen 3.interieur dagcentrum voor jongeren met een eetstoornis 4.seclusion Area Spoedpsychiatrie | H14: 69028.29 | I14: 2025-07-07
A15: PVA 024 quinquies | B15: Oost-Vlaanderen | C15: Lokeren | D15: Zorg & Onderwijs De Hagewinde vzw | E15: Multifunctioneel Centrum De Hagewinde | F15: Opgroeien en VAPH | G15: Buiteninrichting: troost- en boosplek op centraal domein Binneninrichting: 1.comfortroom zorggroep Nele 2.aanpassen afzonderingsruimte zorggroep Kadanz 3.aanpassen afzonderingsruimte in locatie Kban | H15: 34398.77 | I15: 2025-07-07
A16: PVA 025 tris | B16: Antwerpen | C16: Mechelen | D16: Emmaus vzw | E16: Jeugdzorg Emmaus Antwerpen | F16: Opgroeien | G16: Buiteninrichting: inrichting La Strada | H16: 79781.66 | I16: 2025-07-07
A17: PVA 031 tris | B17: West-Vlaanderen | C17: Wervik | D17: Xplo vzw | E17: Xplo | F17: Opgroeien | G17: Buiteninrichting: WADI - een bijzondere plek van ontmoeting met jezelf en de ander Binneninrichting: toegangsbeheer op maat voor kamertraining | H17: 42919.15 | I17: 2025-07-07
A18: PVA 037 bis | B18: Limburg | C18: Dilsen - Stokkem | D18: Zorggroep Arum vzw | E18: De Meander | F18: VAPH | G18: Buiteninrichting: 1.speeltoestellen en groenafscheiding CAMPUS FABOR 2.herinrichting buitenruimte CAMPUS MEANDER Binneninrichting: 1.aanpassing Time - out Leefgroep WIP 2.comfortroom leefgroep KEI 3.herinrichting leefruimte BLOCUS 4.stilte ruimte dagcentrum CAMPUS MANE | H18: 107556.91 | I18: 2025-07-07
A19: PVA 042 tris | B19: Antwerpen | C19: Brasschaat | D19: Olo-Rotonde vzw | E19: Olo-Rotonde | F19: Opgroeien en VAPH | G19: Binneninrichting: 1.volledige aankleding van onze PAR's 2.mobiele snoezelboxen 3.camerasysteem 4.deurcontrole-systeem | H19: 47482.75 | I19: 2025-07-07
A20: PVA 044 tris | B20: Oost-Vlaanderen | C20: Lokeren | D20: Emiliani vzw | E20: Emiliani | F20: VAPH | G20: Binneninrichting: 1.inrichten omfortroom Tarwedreef 1 2.inrichten belevingsruimte Korendreef 1 3.aankoop blijfstoel Korendreef 1 | H20: 9968 | I20: 2025-07-07
A21: PVA 045 tris | B21: Oost-Vlaanderen | C21: Buggenhout | D21: Blijdorp vzw | E21: Blijdorp | F21: VAPH | G21: Binneninrichting: inrichting snoezelruimte | H21: 31519.46 | I21: 2025-07-07
A22: PVA 048 tris | B22: Limburg | C22: Genk | D22: Covida vzw | E22: Covida | F22: VAPH | G22: Buiteninrichting: 1.terrassen Maaseik (valbeveiliging) 2.belevingstuin Maasmechelen 3.belevingstuin De Kade Maaseik | H22: 122687.68 | I22: 2025-07-07
A23: PVA 061 bis | B23: Vlaams-Brabant | C23: Leefdaal | D23: De Eglantier vzw | E23: De Eglantier | F23: VAPH | G23: Buiteninrichting: inrichting tuin (rust en ontdekking) Binneninrichting: 1.stilteruimte/comfortroom 2.akoestische aanpassingen 3.zorgtechnologie: Protac SenSit + poef 4.zorgtechnologie: Protac Ballblankets | H23: 9924.93 | I23: 2025-07-07
A24: PVA 062 bis | B24: Oost-Vlaanderen | C24: Merelbeke-Melle | D24: Karus vzw | E24: Karus | F24: ELGEZ | G24: Buiteninrichting: Afdeling Hestia Afdeling Dam Afdeling Dageraad | H24: 77226.4 | I24: 2025-07-07
A25: PVA 067 bis | B25: West-Vlaanderen | C25: Rollegem | D25: Medisch Pedagogisch Instituut De Kindervriend vzw | E25: Medisch Pedagogisch Instituut De Kindervriend | F25: VAPH | G25: Buiteninrichting: beleeftuin met buitenkamers voor kinderen met een matig tot ernstig verstandelijke beperking en complexe problematiek. | H25: 82404.04 | I25: 2025-07-07
A26: PVA 067 bis | B26: West-Vlaanderen | C26: Rollegem | D26: Medisch Pedagogisch Instituut De Kindervriend vzw | E26: Medisch Pedagogisch Instituut De Kindervriend | F26: VAPH | G26: Buiteninrichting: beleeftuin met buitenkamers voor kinderen met een matig tot ernstig verstandelijke beperking en complexe problematiek. | H26: 26352.83 | I26: 2025-09-02
A27: PVA 068 bis | B27: Vlaams-Brabant | C27: Roosdaal | D27: Medisch Pedagogisch Centrum Sint-Franciscus vzw | E27: Medisch Pedagogisch Centrum Sint-Franciscus | F27: Opgroeien en VAPH | G27: Buiteninrichting: 1.aanleg van een pannaveld 2.buiteninrichting MFC 3.buiteninrichting VZA Binneninrichting: 1.blijfstoelen en Sensit 2.binneninrichting MFC | H27: 12050.75 | I27: 2025-07-07
A28: PVA 071 tris | B28: Limburg | C28: Pelt | D28: Stijn vzw | E28: Dienstencentrum Sint Oda | F28: VAPH | G28: Buiteninrichting: gedragsregulerende en stimulerende buitenruimte voor een 15-tal kinderen en jongeren met een ernstig-diep verstandelijke beperking en moeilijk verstaanbaar gedrag. Binneninrichting: gedragsregulerende individuele aanpassingen aan kamer en buitenruimte voor een 20 jarige jongeman met een ernstig verstandelijke beperking en extreem moeilijk verstaanbaar gedrag. | H28: 19668.24 | I28: 2025-07-07
A29: PVA 086 tris | B29: Antwerpen | C29: Boechout | D29: Organisatie Broeders van Liefde vzw | E29: Zorggroep Multiversum | F29: ELGEZ | G29: Buiteninrichting: aanleg van een safe garden/therapeutische tuin voor de doelgroep DD Mentale beperking (Knoop) Binneninrichting: verbouwing acute opname afdeling Intro 2 in functie van HIC | H29: 151161.86 | I29: 2025-07-07
A30: PVA 088 bis | B30: Oost-Vlaanderen | C30: Lievegem | D30: Blij Leven vzw | E30: Blij Leven | F30: Opgroeien | G30: Buiteninrichting: masterplan buiteninrichting Binneninrichting: 1.plan prikkelarme omgeving, akoestich comfort 2.aanpak speel- en comfortplek | H30: 72786.54 | I30: 2025-07-07
A31: PVA 089 bis | B31: Limburg | C31: Genk | D31: Intercommunale vereniging voor hulp aan Gehandicapten in Limburg Cvba | E31: Ter Heide | F31: VAPH | G31: Buiteninrichting: 1.safe garden campus Genk 2.dierenpark campus Genk 3.oase: 3 extra buitencompartimenten Huis 3 + speeltoestellen Woonbuurt Oase Binneninrichting: 1.meers 1 aanpassingen dagcentrum 2.brik 1 campus Brikhof Borgloon 3.opfrissing activiteitencentrum fase 2 | H31: 23502.41 | I31: 2025-07-07
A32: PVA 100 bis | B32: Antwerpen | C32: Bonheiden | D32: Onthaalcentrum Ter Heide vzw | E32: Onthaalcentrum Ter Heide | F32: Opgroeien | G32: Binneninrichting: snoezelruimte | H32: 5949.78 | I32: 2025-07-07
A33: PVA 101 bis | B33: Brussel | C33: Anderlecht | D33: Tonuso vzw | E33: Tonuso | F33: Opgroeien | G33: Buiteninrichting: tuinaanleg Tonuso Vilvoorde | H33: 89260.5 | I33: 2025-07-07
A34: PVA 105 bis | B34: Vlaams-Brabant | C34: Scherpenheuvel | D34: Stijn vzw | E34: Dienstencentrum Kamiano | F34: VAPH | G34: Binneninrichting: 1.Pierre Celishof (Hoegaarden): ontspanningsruimte en BeleefTV 2.Ter Boagaerde Zoutleeuw ontspanning door muziektherapie 3.Ter Boogaerde (Zoutleeuw) aankoop van beleefTV | H34: 4888.32 | I34: 2025-07-07
A35: PVA 108 bis | B35: Oost-Vlaanderen | C35: Zelzate | D35: Organisatie Broeders van Liefde vzw | E35: Psychiatrisch Centrum Sint-Jan-Baptist | F35: ELGEZ | G35: Buiteninrichting: buitenruimte forensische nieuwbouw Binneninrichting: 1.schermen highrisk-afdeling Levanta 2.hometrainers highrisk-afdeling Levanta 3.reminiscentieruimte Hemera 4.leeftuimte FTO Encarga 1 | H35: 175208.5 | I35: 2025-07-07
A36: PVA 110 bis | B36: West-Vlaanderen | C36: Brugge | D36: UNIE-K vzw | E36: UNIE-K | F36: VAPH | G36: Buiteninrichting: groenaanplanting beleeftuin Binneninrichting: 1.installatie toezichtscamera's voor TOR en TOK 2.automatiseren inkomdeur centraal gebouw 3.vandaalbestendig maken kamers 4.aankoop loopband 5.automatisatie kamerdeuren | H36: 36211.25 | I36: 2025-07-07
A37: PVA 111 bis | B37: Limburg | C37: Heusden-Zolder | D37: Stijn vzw | E37: Dienstencentrum 't Weyerke | F37: VAPH | G37: Buiteninrichting: belevings-tuin ZAC4 Binneninrichting: prikkelarme comfortroom | H37: 11178.32 | I37: 2025-07-07
A38: PVA 116 bis | B38: West-Vlaanderen | C38: Veurne | D38: Algemeen Ziekenhuis West vzw | E38: Algemeen Ziekenhuis West | F38: ELGEZ | G38: Buiteninrichting: 1.belevenistuin 2.sport in het AZ West park Binneninrichting: time out kamer Geriatrie A | H38: 36356.91 | I38: 2025-07-07
A39: PVA 121 bis | B39: Antwerpen | C39: Bornem | D39: Huize Eyckerheyde vzw | E39: Huize Eyckerheyde | F39: VAPH | G39: Binneninrichting: 1.rust bieden 2.veiligheid voorop | H39: 38303.47 | I39: 2025-07-07
A40: PVA 125 bis | B40: Brussel | C40: Sint-Lambrechts-Woluwe | D40: Organisatie Broeders van Liefde vzw | E40: Koninklijk Instituut Woluwe | F40: VAPH | G40: Buiteninrichting: 1.cocoon schommels in de tuin 2.verankerde antivandalisme combidoelen voetbal/basket/handbal 3.speelpanelen voor op de speelplaats Binneninrichting: 1.aircotoestellen in leefgroepen onder het dak 2.beveiliging lokalen via een nieuw sleutelplan met badges | H40: 11983.92 | I40: 2025-07-07
A41: PVA 132 bis | B41: Limburg | C41: Rekem (Lanaken) | D41: Openbaar Psychiatrisch ZorgCentrum Rekem | E41: Openbaar Psychiatrisch ZorgCentrum Rekem | F41: ELGEZ | G41: Buiteninrichting: stilteplek, bewegingseilanden met bewegingstoestellen op het domein Binneninrichting: 1.comfortroom op elke zorgeenheid 2.badge gestuurde kamerdeuren 3.open balie aan verpleegposten 4.bewegings-, relaxatie- en ontspanningstoestellen 5.multimediawand (touchscreen) in afzonderingskamer Het vervolg | H41: 195836.43 | I41: 2025-07-07
A42: PVA 135 bis | B42: West-Vlaanderen | C42: Beernem | D42: Organisatie Broeders van Liefde vzw | E42: Psychiatrisch Centrum Sint-Amandus | F42: ELGEZ | G42: Buiteninrichting: aanleg steiger bij vijver op domein Binneninrichting: 1.badkamer & comfortroom Pariz/pIZa 2.aanpassen afzonderingskamer Wegwijs 1 | H42: 64853.23 | I42: 2025-07-07
A43: PVA 137 bis | B43: Oost-Vlaanderen | C43: Zottegem | D43: Groep Philippus Neri Geestelijke Gezondheidszorg vzw (TBE Vlaamse Ardennen - Psychiatrisch Ziekenhuis Frapello) | E43: Groep Philippus Neri Geestelijke Gezondheidszorg (TBE Vlaamse Ardennen - Psychiatrisch Ziekenhuis Frapello) | F43: ELGEZ | G43: Binneninrichting: 1.campus Zottegem C&CZ 2.campus Oosterzele | H43: 105909.65 | I43: 2025-07-07
A44: PVA 138 bis | B44: West-Vlaanderen | C44: Ieper | D44: Gezondheidszorg 'Bermhertigheid Jesu' vzw | E44: Psychiatrisch Ziekenhuis Heilig Hart Ieper | F44: ELGEZ | G44: Binneninrichting: 1.ombouwen van afzonderingskamer naar comfortroom 2.ontspanningsruimte creëren ter preventie van agressie op De Wering 3.rooming-in mogelijk maken voor mantelzorgers van cliënten in crisis 4.uitbreiden van sluitmechanisme voor cliëntenkamers en burelen zorgmedewerkers 5.rustruimte creëren op De Stroom 6.spanningsreducerende middelen voorzien | H44: 95195.42 | I44: 2025-07-07
A45: PVA 146 bis | B45: Vlaams-Brabant | C45: Heverlee | D45: Sporen vzw | E45: Sporen | F45: Opgroeien | G45: Binneninrichting: 1.trap en stiltepanelen Oudebaan 2.stiltepanelen en schilderen Geldenaaksebaan 3.inrichting sport- en fitnesskelder | H45: 3790.77 | I45: 2025-07-07
A46: PVA 147 bis | B46: Antwerpen | C46: Antwerpen | D46: Ziekenhuis aan de Stroom vzw | E46: Ziekenhuis aan de Stroom Psychiatrisch Ziekenhuis Stuivenberg | F46: ELGEZ | G46: Binneninrichting: 1.creëren van 3 comfortrooms 2.rooming-in/gesprekslokaal - herinrichting aansluitende afzonderingskamer 3.herinrichting afzonderingskamers | H46: 328058.5 | I46: 2025-07-07
A47: PVA 149 bis | B47: Vlaams-Brabant | C47: Roosdaal | D47: Zonnelied vzw | E47: Zonnelied | F47: VAPH | G47: Buiteninrichting: veilige en ontprikkelende tuinomgeving – campus Gooik Binneninrichting: 1.verplaatsbare en tijdelijke camerasystemen – campus Roosdaal 2.comfort en ontprikkeling: zitzakken met ondersteunend frame | H47: 46965.88 | I47: 2025-07-07
A48: PVA 150 bis | B48: Oost-Vlaanderen | C48: Zwalm | D48: De Bolster vzw | E48: De Bolster | F48: VAPH | G48: Binneninrichting: optimalisatie gebouw De Gaverkant | H48: 10453.3 | I48: 2025-07-07
A49: PVA 157 | B49: Vlaams-Brabant | C49: Averbode | D49: De Schommel vzw | E49: Centrum voor Kindzorg en Gezinsondersteuning De Schommel | F49: Opgroeien | G49: Binneninrichting: 1.rustruimte leefgroep 11jes 2.rustige en ontspanningsurimte Kids 3.bezoekers- en ontspanningsruimte leefgroep 11jes 4.rustige ruimte (ontprikkelen en ontspannen) Ten Bosch | H49: 11863.75 | I49: 2025-07-07
A50: PVA 160 | B50: Antwerpen | C50: Ekeren | D50: Heder vzw | E50: Heder | F50: VAPH | G50: Binneninrichting: 1.onruststoelen en autofixatiesystemen 2.akoestiek in ontmoetingscentrum het Atrium | H50: 11432.29 | I50: 2025-07-07
A51: PVA 161 | B51: Oost-Vlaanderen | C51: Sint-Niklaas | D51: Therapeutisch kinderdagverblijf Het Veer vzw | E51: Multifunctioneel Centrum Het Veer | F51: VAPH | G51: Buiteninrichting: tuin Binneninrichting: 1.polyvalente ruimte 2.leefgroepen | H51: 15710.72 | I51: 2025-07-07
A52: PVA 163 | B52: Antwerpen | C52: Sint-Katelijne-Waver | D52: Borgerstein vzw | E52: Borgerstein | F52: VAPH | G52: Buiteninrichting: aanleg en inrichting van 5 beleeftuinen Berkendries | H52: 71262.64 | I52: 2025-07-07
A53: PVA 165 | B53: Oost-Vlaanderen | C53: Gavere | D53: Organisatie Broeders van Liefde vzw | E53: oc Ebergiste | F53: VAPH | G53: Buiteninrichting: inrichting van een groene buitenomgeving & de creatie van buitenplekken om tot rust te komen in Gavere Binneninrichting: 1.maatregelen gericht op het creëren van een veilige binnenomgeving met aandacht voor ontspanning, rust en comfort in Gavere 2.maatregen gericht op het creëren van ontspanning, rust en comfort in Sint-Martens-Latem 3.maatregelen gericht op het creëren van een veilige binnenomgeving met aandacht voor ontspanning, rust en comfort in Gent | H53: 20722.07 | I53: 2025-07-07
A54: PVA 167 | B54: West-Vlaanderen | C54: Menen | D54: Christelijke Integrale Gezondheids- en Bejaardenzorg (afdeling Psychiatrisch Centrum OLV van Vrede Menen) vzw | E54: Psychiatrisch Centrum Onze Lieve Vrouw van Vrede Menen | F54: ELGEZ | G54: Binneninrichting: infrastructuerele aanpassingen T-dienst NAH/Internering ifv. uitbouw intensive care unit (ICU) | H54: 102137.5 | I54: 2025-07-07
A55: PVA 171 | B55: Oost-Vlaanderen | C55: Gent | D55: Algemeen Ziekenhuis Maria Middelares vzw | E55: Algemeen Ziekenhuis Maria Middelares | F55: ELGEZ | G55: Buiteninrichting: therapeutische patiotuin | H55: 65378.94 | I55: 2025-07-07
A56: PVA 173 | B56: Vlaams-Brabant | C56: Diest | D56: Martine Van Camp vzw | E56: Martine Van Camp | F56: VAPH | G56: Buiteninrichting: creëren van een belevingstuin Binneninrichting: 1.compartimenteren huidige activiteitenzaal 2.realiseren van rust en comfort | H56: 13052.67 | I56: 2025-07-07
A57: PVA 174 | B57: Oost-Vlaanderen | C57: Evergem | D57: GO! Scholengroep Dynamiek | E57: Multifunctioneel Centrum Het Punt | F57: VAPH | G57: Binneninrichting: ontspanning en comfort | H57: 28000 | I57: 2025-07-07
A58: PVA 175 | B58: Vlaams-Brabant | C58: Bierbeek | D58: Organisatie Broeders van Liefde vzw | E58: Zorggroep Sint-Kamillus | F58: ELGEZ | G58: Binneninrichting: 1.PZ Sint-Kamillus - herinrichting afzonderingscomplex OPM 2.PZ Sint-Kamillus - afzonderingscomplex IFOR | H58: 545806.85 | I58: 2025-07-07
A59: PVA 177 | B59: Vlaams-Brabant | C59: Halle | D59: Algemeen Ziekenhuis Sint Maria vzw | E59: Algemeen Ziekenhuis Sint Maria | F59: ELGEZ | G59: Buiteninrichting: therapietuin voor de afdeling PAAZ Binneninrichting: 1.comfortroom in de afdeling PAAZ 2.akoestiek wachtruimte voor de afdeling spoed 3.dementie spoed box voor de afdeling spoed | H59: 6950.69 | I59: 2025-07-07
A60: PVA 179 | B60: West-Vlaanderen | C60: Brugge | D60: Algemeen Ziekenhuis Sint-Jan Brugge av | E60: Algemeen Ziekenhuis Sint-Jan Brugge | F60: ELGEZ | G60: Binneninrichting: 1.comfortroom met interactieve mediawand PAAZ A3 2.comfortroom met interactieve mediawand EPSI 3.comfortroom met interactieve mediawand PAAZ A2 4.omvormen afzonderingskamer naar comfortroom PAAZ A1 5.herinrichting afzonderingskamers EPSI en PAAZ A2 | H60: 54610 | I60: 2025-07-07
A61: PVA 181 | B61: Limburg | C61: Genk | D61: Ziekenhuis Oost-Limburg | E61: Ziekenhuis Oost-Limburg | F61: ELGEZ | G61: Buiteninrichting: 1.buiteninrichting huidige patio PAAZ 2.VIPA5 dossier tuinen Binneninrichting: tuin comfortroom psycho-geriatrie | H61: 53863.05 | I61: 2025-07-07
A62: PVA 182 | B62: West-Vlaanderen | C62: Kortrijk | D62: Begeleidingscentrum Bethanie vzw | E62: Begeleidingscentrum Bethanie | F62: Opgroeien | G62: Buiteninrichting: 1.aanleg van een rustgevende groenomgeving 2.sportinfrastructuur 3.uitbreiden van het cameratoezicht Binneninrichting: 1.plafonds badkamers 2.verbeteren van de akoestiek in het dagcentrum 3.polyvalente extra jongerenruimte in de kelder | H62: 33393.75 | I62: 2025-07-07
A63: PVA 183 | B63: Antwerpen | C63: Duffel | D63: Emmaüs vzw | E63: Universitair Psychiatrisch Centrum Duffel | F63: ELGEZ | G63: Binneninrichting: 1.project ouderenpsychiatrie 2.uitbreiding beweegmogelijkheden | H63: 10152.3 | I63: 2025-07-07
A64: PVA 184 | B64: West-Vlaanderen | C64: Waregem | D64: O.L.V. van Lourdes ziekenhuis Waregem | E64: O.L.V. van Lourdes ziekenhuis Waregem | F64: ELGEZ | G64: Buiteninrichting: speelplein Binneninrichting: PROSA-box | H64: 51562.5 | I64: 2025-07-07
A65: PVA 185 | B65: Antwerpen | C65: Boechout | D65: Jeugdhulp Don Bosco Vlaanderen | E65: Jeugdhulp Don Bosco Antwerpen | F65: Opgroeien | G65: Buiteninrichting: speel- en sportzone Vreugdeborg | H65: 45838.8 | I65: 2025-07-07
A66: PVA 187 | B66: Oost-Vlaanderen | C66: Sint-Niklaas | D66: Psychiatrisch Centrum Sint-Hiëronymus vzw | E66: Psychiatrisch Centrum Sint-Hiëronymus | F66: ELGEZ | G66: Buiteninrichting: herinrichting afdelingstuinen Binneninrichting: preventieve infrastructurele maatregelen en herinrichting afzonderingskamers - ID dienst Legato | H66: 103290 | I66: 2025-07-07
A67: PVA 188 | B67: Oost-Vlaanderen | C67: Evergem | D67: i-mens vzw | E67: Centrum voor Kindzorg en Gezinsondersteuning i-mens, Sloeberhof | F67: Opgroeien | G67: Buiteninrichting: inrichting buitenspeelruimte 2 Binneninrichting: 1.compartimentering van 1 naar 3 functionele ruimtes 2.vervangen glazen wanden/deuren door volle wanden/deuren | H67: 16042.07 | I67: 2025-07-07
A68: PVA 189 | B68: West-Vlaanderen | C68: Brugge | D68: De Kade vzw | E68: De Kade | F68: Opgroeien en VAPH | G68: Buiteninrichting: 1.campus Oostkamp - belevingstuin 2.campus Spermalie - groen in de stad 3.campus De Polder - hut in het bos 4.Het Vlot - sport als uitlaatklep 5.campus Het Anker - klimmen, skaten & voelen 6.campus De Berkjes - gevoelsplekken | H68: 277801.55 | I68: 2025-07-07
A69: PVA 192 | B69: Oost-Vlaanderen | C69: Deinze | D69: Scholengroep 24K | E69: Multifunctioneel Centrum Odisam | F69: VAPH | G69: Buiteninrichting: 1.speel- en sporttoestellen voor energie- en emotionele regulatie 2.speel- en sporttoestellen voor aanpassing aan de omgeving via 'Outdoor Sensory Spel' 3.rust en ontspanning met “Modulaire Sensory Boxen” | H69: 24853.51 | I69: 2025-07-07
G70: Totaal goedgekeurde investeringen | H70: =SUM(H5:H69) -> 4663911.38
B72: Overzicht per provincie
B73: Antwerpen | C73: =SUMIF($B$5:$B$69,B73,$H$5:$H$69) -> 806086.55
B74: Limburg | C74: =SUMIF($B$5:$B$69,B74,$H$5:$H$69) -> 913487.88
B75: Oost-Vlaanderen | C75: 1032649.06
B76: Vlaams-Brabant | C76: 829371.45
B77: West-Vlaanderen | C77: 981072.02
B78: Totaal | C78: =SUM(C73:C77) -> 4562666.96
B80: Brussel | C80: =SUMIF($B$5:$B$69,B80,$H$5:$H$69) -> 101244.42
B81: Algemeen totaal | C81: =SUM(C80,C78) -> 4663911.38

Sheet Klimaatsubsidies
A1: Goedgekeurde projecten klimaatsubsidies van 1 januari tot 30 november 2025
A2: Kimaatsubsidies: Erkende en vergunde voorzieningen binnen de sectoren van Welzijn, Volksgezondheid en Gezin kunnen VIPA-subsidies aanvragen voor het uitvoeren van energiebesparende maatregelen, op voorwaarde dat ze eerst via het Vlaams Energiebedrijf een energiescan hebben laten uitvoeren. Het overzicht bevat de toegezegde ‘klimaatsubsidies’. De aanrekening op de VIPA-kredieten gebeurt op het moment van de toezegging.
A3: Frequentie van actualisatie van deze lijst: als er een oproep is geweest en de middelen daarvoor zijn vastgelegd (1 keer per jaar).
A4: Dossiernummer | B4: Zorgvoorzieningstype | C4: Initiatiefnemer | D4: Voorziening/Gebouw | E4: Maatregel | F4: Provincie | G4: Verleende klimaatsubsidies | H4: Goedkeuring | J4: Overzicht per provincie
A5: RPS-1248-1 | B5: Lokaal dienstencentrum | C5: Openbaar Centrum voor Maatschappelijk Welzijn van Veurne | D5: Zonnebloem | E5: Relighting | F5: West-Vlaanderen | G5: 23544 | H5: 2025-05-09 | J5: Antwerpen | K5: =SUMIF($F$5:$F$260,J5,$G$5:$G$260) -> 809802.4
A6: RPS-1249-1 | B6: Woonzorgcentrum | C6: Openbaar Centrum voor Maatschappelijk Welzijn van Kortrijk | D6: G-0013-WZC Ter Melle | E6: Relighting/relamping | F6: West-Vlaanderen | G6: 57000 | H6: 2025-05-09 | J6: Limburg | K6: 539356.25
A7: RPS-802-3 | B7: Woonzorgcentrum | C7: Openbaar Centrum voor Maatschappelijk Welzijn van Kortrijk | D7: G-0016-WZC De Weister | E7: Relighting/relamping | F7: West-Vlaanderen | G7: 46200 | H7: 2025-05-09 | J7: Oost-Vlaanderen | K7: 1032667.1
A8: RPS-805-3 | B8: Woonzorgcentrum | C8: Openbaar Centrum voor Maatschappelijk Welzijn van Kortrijk | D8: G-0017-WZC Biezenheem | E8: Relighting/relamping | F8: West-Vlaanderen | G8: 36000 | H8: 2025-05-09 | J8: Vlaams-Brabant | K8: 503040.75
A9: RPS-804-3 | B9: Lokaal dienstencentrum | C9: Openbaar Centrum voor Maatschappelijk Welzijn van Kortrijk | D9: G-0028-WKC De Zonnewijzer | E9: PV-panelen | F9: West-Vlaanderen | G9: 6605 | H9: 2025-05-09 | J9: West-Vlaanderen | K9: 4017003.24
A10: RPS-804-4 | B10: Lokaal dienstencentrum | C10: Openbaar Centrum voor Maatschappelijk Welzijn van Kortrijk | D10: G-0028-WKC De Zonnewijzer | E10: Relighting/relamping | F10: West-Vlaanderen | G10: 17400 | H10: 2025-05-09 | J10: Brussels Hoofdstedelijk Gewest | K10: 0
A11: RPS-800-4 | B11: Lokaal dienstencentrum | C11: Openbaar Centrum voor Maatschappelijk Welzijn van Kortrijk | D11: G-0029-De Nieuwe Lente - WKC De Zevenkamer | E11: Relighting/relamping | F11: West-Vlaanderen | G11: 12600 | H11: 2025-05-09 | J11: Totaal Vlaanderen | K11: =SUM(K5:K10) -> 6901869.74
A12: RPS-800-3 | B12: Initiatief Buitenschoolse Opvang | C12: Openbaar Centrum voor Maatschappelijk Welzijn van Kortrijk | D12: G-0029-De Nieuwe Lente - WKC De Zevenkamer | E12: PV-panelen | F12: West-Vlaanderen | G12: 8649 | H12: 2025-05-09
A13: RPS-801-5 | B13: Groep van Assistentiewoningen | C13: Openbaar Centrum voor Maatschappelijk Welzijn van Kortrijk | D13: G-0355-Rietveld | E13: Relighting/relamping | F13: West-Vlaanderen | G13: 1135 | H13: 2025-05-09
A14: RPS-803-2 | B14: Groepsopvang | C14: Openbaar Centrum voor Maatschappelijk Welzijn van Kortrijk | D14: G-0471-Kinderopvang Blokkenhuis | E14: PV-panelen | F14: West-Vlaanderen | G14: 1548 | H14: 2025-05-09
A15: RPS-1250-1 | B15: Woonzorgcentrum | C15: Openbaar Centrum voor Maatschappelijk Welzijn van Oudenburg | D15: WZC Riethove | E15: PV-panelen | F15: West-Vlaanderen | G15: 7805 | H15: 2025-05-09
A16: RPS-1250-2 | B16: Woonzorgcentrum | C16: Openbaar Centrum voor Maatschappelijk Welzijn van Oudenburg | D16: WZC Riethove | E16: Relighting/relamping | F16: West-Vlaanderen | G16: 17100 | H16: 2025-05-09
A17: RPE-880-9 | B17: Algemeen ziekenhuis | C17: AZ ST-JAN Brugge-Oostende A.V. | D17: AZ Sint-Jan, Ruddershove | E17: PV-panelen | F17: West-Vlaanderen | G17: 250000 | H17: 2025-05-09
A18: RPS-291-8 | B18: Algemeen ziekenhuis | C18: Onze-Lieve-Vrouw van Lourdes Ziekenhuis Waregem | D18: O.L.V. van Lourdes Ziekenhuis Waregem vzw | E18: Relighting | F18: West-Vlaanderen | G18: 2214 | H18: 2025-05-09
A19: RPS-291-9 | B19: Algemeen ziekenhuis | C19: Onze-Lieve-Vrouw van Lourdes Ziekenhuis Waregem | D19: O.L.V. van Lourdes Ziekenhuis Waregem vzw | E19: Relighting | F19: West-Vlaanderen | G19: 5756 | H19: 2025-05-09
A20: RPS-291-10 | B20: Algemeen ziekenhuis | C20: Onze-Lieve-Vrouw van Lourdes Ziekenhuis Waregem | D20: O.L.V. van Lourdes Ziekenhuis Waregem vzw | E20: Relighting | F20: West-Vlaanderen | G20: 2628 | H20: 2025-05-09
A21: RPS-291-11 | B21: Algemeen ziekenhuis | C21: Onze-Lieve-Vrouw van Lourdes Ziekenhuis Waregem | D21: O.L.V. van Lourdes Ziekenhuis Waregem vzw | E21: Relighting | F21: West-Vlaanderen | G21: 3250 | H21: 2025-05-09
A22: RPS-291-12 | B22: Algemeen ziekenhuis | C22: Onze-Lieve-Vrouw van Lourdes Ziekenhuis Waregem | D22: O.L.V. van Lourdes Ziekenhuis Waregem vzw | E22: Relighting | F22: West-Vlaanderen | G22: 17366 | H22: 2025-05-09
A23: RPS-291-13 | B23: Algemeen ziekenhuis | C23: Onze-Lieve-Vrouw van Lourdes Ziekenhuis Waregem | D23: O.L.V. van Lourdes Ziekenhuis Waregem vzw | E23: Relighting | F23: West-Vlaanderen | G23: 14675 | H23: 2025-05-09
A24: RPS-291-14 | B24: Algemeen ziekenhuis | C24: Onze-Lieve-Vrouw van Lourdes Ziekenhuis Waregem | D24: O.L.V. van Lourdes Ziekenhuis Waregem vzw | E24: Relighting | F24: West-Vlaanderen | G24: 15612 | H24: 2025-05-09
A25: RPS-291-15 | B25: Algemeen ziekenhuis | C25: Onze-Lieve-Vrouw van Lourdes Ziekenhuis Waregem | D25: O.L.V. van Lourdes Ziekenhuis Waregem vzw | E25: Relighting | F25: West-Vlaanderen | G25: 3943 | H25: 2025-05-09
A26: RPS-291-16 | B26: Algemeen ziekenhuis | C26: Onze-Lieve-Vrouw van Lourdes Ziekenhuis Waregem | D26: O.L.V. van Lourdes Ziekenhuis Waregem vzw | E26: Relighting | F26: West-Vlaanderen | G26: 10701 | H26: 2025-05-09
A27: RPS-291-17 | B27: Algemeen ziekenhuis | C27: Onze-Lieve-Vrouw van Lourdes Ziekenhuis Waregem | D27: O.L.V. van Lourdes Ziekenhuis Waregem vzw | E27: Relighting | F27: West-Vlaanderen | G27: 5843 | H27: 2025-05-09
A28: RPS-291-18 | B28: Algemeen ziekenhuis | C28: Onze-Lieve-Vrouw van Lourdes Ziekenhuis Waregem | D28: O.L.V. van Lourdes Ziekenhuis Waregem vzw | E28: Relighting | F28: West-Vlaanderen | G28: 6636 | H28: 2025-05-09
A29: RPS-291-19 | B29: Algemeen ziekenhuis | C29: Onze-Lieve-Vrouw van Lourdes Ziekenhuis Waregem | D29: O.L.V. van Lourdes Ziekenhuis Waregem vzw | E29: Relighting | F29: West-Vlaanderen | G29: 2650 | H29: 2025-05-09
A30: RPS-291-20 | B30: Algemeen ziekenhuis | C30: Onze-Lieve-Vrouw van Lourdes Ziekenhuis Waregem | D30: O.L.V. van Lourdes Ziekenhuis Waregem vzw | E30: Relighting | F30: West-Vlaanderen | G30: 8571 | H30: 2025-05-09
A31: RPS-291-21 | B31: Algemeen ziekenhuis | C31: Onze-Lieve-Vrouw van Lourdes Ziekenhuis Waregem | D31: O.L.V. van Lourdes Ziekenhuis Waregem vzw | E31: Relighting | F31: West-Vlaanderen | G31: 10721 | H31: 2025-05-09
A32: RPS-291-22 | B32: Algemeen ziekenhuis | C32: Onze-Lieve-Vrouw van Lourdes Ziekenhuis Waregem | D32: O.L.V. van Lourdes Ziekenhuis Waregem vzw | E32: Relighting | F32: West-Vlaanderen | G32: 10903 | H32: 2025-05-09
A33: RPS-291-23 | B33: Algemeen ziekenhuis | C33: Onze-Lieve-Vrouw van Lourdes Ziekenhuis Waregem | D33: O.L.V. van Lourdes Ziekenhuis Waregem vzw | E33: Relighting | F33: West-Vlaanderen | G33: 26880 | H33: 2025-05-09
A34: RPS-291-7 | B34: Algemeen ziekenhuis | C34: Onze-Lieve-Vrouw van Lourdes Ziekenhuis Waregem | D34: O.L.V. van Lourdes Ziekenhuis Waregem vzw | E34: PV-panelen | F34: West-Vlaanderen | G34: 303000 | H34: 2025-05-09
A35: RPS-291-24 | B35: Algemeen ziekenhuis | C35: Onze-Lieve-Vrouw van Lourdes Ziekenhuis Waregem | D35: O.L.V. van Lourdes Ziekenhuis Waregem vzw | E35: Relighting | F35: West-Vlaanderen | G35: 4344 | H35: 2025-05-09
A36: RPS-291-25 | B36: Algemeen ziekenhuis | C36: Onze-Lieve-Vrouw van Lourdes Ziekenhuis Waregem | D36: O.L.V. van Lourdes Ziekenhuis Waregem vzw | E36: Relighting | F36: West-Vlaanderen | G36: 19605 | H36: 2025-05-09
A37: RPS-291-26 | B37: Algemeen ziekenhuis | C37: Onze-Lieve-Vrouw van Lourdes Ziekenhuis Waregem | D37: O.L.V. van Lourdes Ziekenhuis Waregem vzw | E37: Relighting | F37: West-Vlaanderen | G37: 54717 | H37: 2025-05-09
A38: RPS-291-27 | B38: Algemeen ziekenhuis | C38: Onze-Lieve-Vrouw van Lourdes Ziekenhuis Waregem | D38: O.L.V. van Lourdes Ziekenhuis Waregem vzw | E38: Relighting | F38: West-Vlaanderen | G38: 22492 | H38: 2025-05-09
A39: RPS-291-28 | B39: Algemeen ziekenhuis | C39: Onze-Lieve-Vrouw van Lourdes Ziekenhuis Waregem | D39: O.L.V. van Lourdes Ziekenhuis Waregem vzw | E39: Relighting | F39: West-Vlaanderen | G39: 24219 | H39: 2025-05-09
A40: RPS-291-29 | B40: Algemeen ziekenhuis | C40: Onze-Lieve-Vrouw van Lourdes Ziekenhuis Waregem | D40: O.L.V. van Lourdes Ziekenhuis Waregem vzw | E40: Relighting | F40: West-Vlaanderen | G40: 2950 | H40: 2025-05-09
A41: RPS-291-30 | B41: Algemeen ziekenhuis | C41: Onze-Lieve-Vrouw van Lourdes Ziekenhuis Waregem | D41: O.L.V. van Lourdes Ziekenhuis Waregem vzw | E41: Relighting | F41: West-Vlaanderen | G41: 17081 | H41: 2025-05-09
A42: RPS-291-31 | B42: Algemeen ziekenhuis | C42: Onze-Lieve-Vrouw van Lourdes Ziekenhuis Waregem | D42: O.L.V. van Lourdes Ziekenhuis Waregem vzw | E42: Relighting | F42: West-Vlaanderen | G42: 14690 | H42: 2025-05-09
A43: RPS-291-32 | B43: Algemeen ziekenhuis | C43: Onze-Lieve-Vrouw van Lourdes Ziekenhuis Waregem | D43: O.L.V. van Lourdes Ziekenhuis Waregem vzw | E43: Relighting | F43: West-Vlaanderen | G43: 8574 | H43: 2025-05-09
A44: RPS-291-33 | B44: Algemeen ziekenhuis | C44: Onze-Lieve-Vrouw van Lourdes Ziekenhuis Waregem | D44: O.L.V. van Lourdes Ziekenhuis Waregem vzw | E44: Relighting | F44: West-Vlaanderen | G44: 9087 | H44: 2025-05-09
A45: RPS-291-34 | B45: Algemeen ziekenhuis | C45: Onze-Lieve-Vrouw van Lourdes Ziekenhuis Waregem | D45: O.L.V. van Lourdes Ziekenhuis Waregem vzw | E45: Relighting | F45: West-Vlaanderen | G45: 1119 | H45: 2025-05-09
A46: RPS-291-35 | B46: Algemeen ziekenhuis | C46: Onze-Lieve-Vrouw van Lourdes Ziekenhuis Waregem | D46: O.L.V. van Lourdes Ziekenhuis Waregem vzw | E46: Relighting | F46: West-Vlaanderen | G46: 17809 | H46: 2025-05-09
A47: RPS-1251-2 | B47: Organisatie met terreinwerking in de preventieve gezondheidszorg | C47: ORGANISATIE BROEDERS VAN LIEFDE | D47: De Sleutel - ACG | E47: Monitoring | F47: Oost-Vlaanderen | G47: 579 | H47: 2025-05-09
A48: RPS-1251-4 | B48: Organisatie met terreinwerking in de preventieve gezondheidszorg | C48: ORGANISATIE BROEDERS VAN LIEFDE | D48: De Sleutel - ACG | E48: Vervangen pompen | F48: Oost-Vlaanderen | G48: 684 | H48: 2025-05-09
A49: RPS-1251-1 | B49: Organisatie met terreinwerking in de preventieve gezondheidszorg | C49: ORGANISATIE BROEDERS VAN LIEFDE | D49: De Sleutel - ACG | E49: Isoleren pompen/kranen/hydraulica | F49: Oost-Vlaanderen | G49: 1098 | H49: 2025-05-09
A50: RPS-1251-3 | B50: Organisatie met terreinwerking in de preventieve gezondheidszorg | C50: ORGANISATIE BROEDERS VAN LIEFDE | D50: De Sleutel - ACG | E50: Relighting | F50: Oost-Vlaanderen | G50: 9240 | H50: 2025-05-09
A51: RPS-1252-1 | B51: Revalidatieovereenkomsten | C51: ORGANISATIE BROEDERS VAN LIEFDE | D51: De Sleutel - RKJ | E51: Isoleren pompen/kranen/hydraulica | F51: Oost-Vlaanderen | G51: 1048 | H51: 2025-05-09
A52: RPS-1252-4 | B52: Revalidatieovereenkomsten | C52: ORGANISATIE BROEDERS VAN LIEFDE | D52: De Sleutel - RKJ | E52: Vervangen pompen | F52: Oost-Vlaanderen | G52: 1009 | H52: 2025-05-09
A53: RPS-1252-3 | B53: Revalidatieovereenkomsten | C53: ORGANISATIE BROEDERS VAN LIEFDE | D53: De Sleutel - RKJ | E53: Relighting | F53: Oost-Vlaanderen | G53: 7608 | H53: 2025-05-09
A54: RPS-1252-2 | B54: Revalidatieovereenkomsten | C54: ORGANISATIE BROEDERS VAN LIEFDE | D54: De Sleutel - RKJ | E54: PV-panelen | F54: Oost-Vlaanderen | G54: 2697 | H54: 2025-05-09
A55: RPE-1253-1 | B55: Subsidie-eenheid VAPH | C55: ORGANISATIE BROEDERS VAN LIEFDE | D55: Het Roerhuis | E55: PV-panelen | F55: Vlaams-Brabant | G55: 13061.25 | H55: 2025-05-09
A56: RPE-1088-2 | B56: Subsidie-eenheid VAPH | C56: ORGANISATIE BROEDERS VAN LIEFDE | D56: OCSF DCH | E56: Relighting | F56: Limburg | G56: 7186.2 | H56: 2025-05-09
A57: RPE-1088-3 | B57: Subsidie-eenheid VAPH | C57: ORGANISATIE BROEDERS VAN LIEFDE | D57: OCSF DCH | E57: Stookplaatsrenovatie | F57: Limburg | G57: 34459.6 | H57: 2025-05-09
A58: RPE-1006-2 | B58: Subsidie-eenheid VAPH | C58: ORGANISATIE BROEDERS VAN LIEFDE | D58: OCSF Gebouw S | E58: Dakisolatie plat dak | F58: Limburg | G58: 95891.25 | H58: 2025-05-09
A59: RPE-1006-3 | B59: Subsidie-eenheid VAPH | C59: ORGANISATIE BROEDERS VAN LIEFDE | D59: OCSF Gebouw S | E59: Relighting | F59: Limburg | G59: 22872.5 | H59: 2025-05-09
A60: RPE-1007-4 | B60: Subsidie-eenheid VAPH | C60: ORGANISATIE BROEDERS VAN LIEFDE | D60: OCSF Gebouw_P1 | E60: Relighting | F60: Limburg | G60: 8271.2 | H60: 2025-05-09
A61: RPE-1007-5 | B61: Subsidie-eenheid VAPH | C61: ORGANISATIE BROEDERS VAN LIEFDE | D61: OCSF Gebouw_P1 | E61: Stookplaatsrenovatie | F61: Limburg | G61: 25668.65 | H61: 2025-05-09
A62: RPE-1008-2 | B62: Subsidie-eenheid VAPH | C62: ORGANISATIE BROEDERS VAN LIEFDE | D62: OCSF Gebouw_P2 | E62: Isoleren pompen/kranen/hydraulica | F62: Limburg | G62: 72 | H62: 2025-05-09
A63: RPE-1008-3 | B63: Subsidie-eenheid VAPH | C63: ORGANISATIE BROEDERS VAN LIEFDE | D63: OCSF Gebouw_P2 | E63: Relighting | F63: Limburg | G63: 8271.2 | H63: 2025-05-09
A64: RPE-1008-4 | B64: Subsidie-eenheid VAPH | C64: ORGANISATIE BROEDERS VAN LIEFDE | D64: OCSF Gebouw_P2 | E64: Stookplaatsrenovatie | F64: Limburg | G64: 22868.65 | H64: 2025-05-09
A65: RPE-1254-1 | B65: Subsidie-eenheid VAPH | C65: ORGANISATIE BROEDERS VAN LIEFDE | D65: OCSF_SI Hoeveke | E65: PV-panelen | F65: Limburg | G65: 3780 | H65: 2025-05-09
A66: RPE-575-10 | B66: Psychiatrisch ziekenhuis | C66: ORGANISATIE BROEDERS VAN LIEFDE | D66: SJB - Suikerkaai (volledige site) | E66: Windmolens | F66: Oost-Vlaanderen | G66: 92500 | H66: 2025-05-09
A67: RPS-1255-1 | B67: Subsidie-eenheid VAPH | C67: NEKTARI | D67: BWZ Klein Brabant VZW (site Flegado) | E67: Zonneboiler | F67: Antwerpen | G67: 5999 | H67: 2025-05-09
A68: RPS-1256-1 | B68: Centrum voor integrale gezinszorg | C68: De Zeshoek | D68: CIG DE ZESHOEK | E68: Dakisolatie plat dak | F68: Limburg | G68: 72000 | H68: 2025-05-09
A69: RPS-1256-2 | B69: Centrum voor integrale gezinszorg | C69: De Zeshoek | D69: CIG DE ZESHOEK | E69: Dakisolatie plat dak | F69: Limburg | G69: 11040 | H69: 2025-05-09
A70: RPS-1257-2 | B70: Algemeen ziekenhuis | C70: A.Z. SINT-LUCAS | D70: AZ Sint Lucas Hoofdgebouw | E70: Regeltechn.ventilatie | F70: West-Vlaanderen | G70: 33520 | H70: 2025-05-09
A71: RPS-1257-1 | B71: Algemeen ziekenhuis | C71: A.Z. SINT-LUCAS | D71: AZ Sint Lucas Hoofdgebouw | E71: PV-panelen | F71: West-Vlaanderen | G71: 8391 | H71: 2025-05-09
A72: RPS-1257-3 | B72: Algemeen ziekenhuis | C72: A.Z. SINT-LUCAS | D72: AZ Sint Lucas Hoofdgebouw | E72: Relighting | F72: West-Vlaanderen | G72: 72300 | H72: 2025-05-09
A73: RPS-1258-2 | B73: Centrum voor Kinderzorg en Gezinsondersteuning | C73: Koraal VZW | D73: Kasteel Horst | E73: Relighting/relamping | F73: Antwerpen | G73: 24300 | H73: 2025-05-09
A74: RPS-1258-1 | B74: Centrum voor Kinderzorg en Gezinsondersteuning | C74: Koraal VZW | D74: Kasteel Horst | E74: PV-panelen | F74: Antwerpen | G74: 1321 | H74: 2025-05-09
A75: RPS-1258-4 | B75: Woonzorgcentrum | C75: Sint-Barbara | D75: Beversthuis | E75: Relighting | F75: Limburg | G75: 43224 | H75: 2025-05-09
A76: RPS-1258-3 | B76: Woonzorgcentrum | C76: Sint-Barbara | D76: Beversthuis | E76: PV-panelen | F76: Limburg | G76: 94200 | H76: 2025-05-09
A77: RPS-1258-5 | B77: Woonzorgcentrum | C77: Sint-Barbara | D77: Beversthuis | E77: Relighting | F77: Limburg | G77: 24000 | H77: 2025-05-09
A78: RPS-343-2 | B78: Subsidie-eenheid VAPH | C78: Dominiek Savio Instituut vzw - De Tandem | D78: Boskant Kouter | E78: Dakisolatie | F78: West-Vlaanderen | G78: 13608 | H78: 2025-05-09
A79: RPS-343-3 | B79: Subsidie-eenheid VAPH | C79: Dominiek Savio Instituut vzw - De Tandem | D79: Boskant Kouter | E79: PV-panelen | F79: West-Vlaanderen | G79: 7103 | H79: 2025-05-09
A80: RPS-820-3 | B80: Subsidie-eenheid VAPH | C80: Dominiek Savio Instituut vzw - De Tandem | D80: Koolskampstraat (gebouw 152) | E80: PV-panelen | F80: West-Vlaanderen | G80: 10956 | H80: 2025-05-09
A81: RPS-1259-1 | B81: Subsidie-eenheid VAPH | C81: Dominiek Savio Instituut vzw - De Tandem | D81: Koolskampstraat (Gebouw 154) | E81: PV-panelen | F81: West-Vlaanderen | G81: 16129 | H81: 2025-05-09
A82: RPS-1259-2 | B82: Subsidie-eenheid VAPH | C82: Dominiek Savio Instituut vzw - De Tandem | D82: Koolskampstraat (Gebouw 154) | E82: Relighting/relamping | F82: West-Vlaanderen | G82: 1466 | H82: 2025-05-09
A83: RPS-1260-2 | B83: Subsidie-eenheid VAPH | C83: Dominiek Savio Instituut vzw - De Tandem | D83: Koolskampstraat (gebouw 156) | E83: Relighting/relamping | F83: West-Vlaanderen | G83: 719 | H83: 2025-05-09
A84: RPS-1260-1 | B84: Subsidie-eenheid VAPH | C84: Dominiek Savio Instituut vzw - De Tandem | D84: Koolskampstraat (gebouw 156) | E84: PV-panelen | F84: West-Vlaanderen | G84: 2860 | H84: 2025-05-09
A85: RPS-821-2 | B85: Subsidie-eenheid VAPH | C85: Dominiek Savio Instituut vzw - De Tandem | D85: Koolskampstraat (Gebouw 170) | E85: PV-panelen | F85: West-Vlaanderen | G85: 4239 | H85: 2025-05-09
A86: RPS-822-3 | B86: Subsidie-eenheid VAPH | C86: Dominiek Savio Instituut vzw - De Tandem | D86: Koolskampstraat (Gebouw 180) | E86: Schrijnwerkrenovatie | F86: West-Vlaanderen | G86: 17400 | H86: 2025-05-09
A87: RPS-822-2 | B87: Subsidie-eenheid VAPH | C87: Dominiek Savio Instituut vzw - De Tandem | D87: Koolskampstraat (Gebouw 180) | E87: PV-panelen | F87: West-Vlaanderen | G87: 3842 | H87: 2025-05-09
A88: RPS-823-2 | B88: Subsidie-eenheid VAPH | C88: Dominiek Savio Instituut vzw - De Tandem | D88: Koolskampstraat (gebouw 320) | E88: PV-panelen | F88: West-Vlaanderen | G88: 11034 | H88: 2025-05-09
A89: RPS-823-3 | B89: Subsidie-eenheid VAPH | C89: Dominiek Savio Instituut vzw - De Tandem | D89: Koolskampstraat (gebouw 325) | E89: PV-panelen | F89: West-Vlaanderen | G89: 965 | H89: 2025-05-09
A90: RPS-1261-1 | B90: Subsidie-eenheid VAPH | C90: De Lovie | D90: De Seizoenen | E90: PV-panelen | F90: West-Vlaanderen | G90: 4487 | H90: 2025-05-09
A91: RPS-605-5 | B91: Subsidie-eenheid VAPH | C91: De Lovie | D91: Het Vijverhof loods-schuur | E91: PV-panelen | F91: West-Vlaanderen | G91: 15743 | H91: 2025-05-09
A92: RPS-1262-6 | B92: Subsidie-eenheid VAPH | C92: De Lovie | D92: Hoevestallen (18 - domein) | E92: PV-panelen | F92: West-Vlaanderen | G92: 16581 | H92: 2025-05-09
A93: RPS-608-3 | B93: Subsidie-eenheid VAPH | C93: De Lovie | D93: Matthijs | E93: PV-panelen | F93: West-Vlaanderen | G93: 18183 | H93: 2025-05-09
A94: RPS-1262-6 | B94: Subsidie-eenheid VAPH | C94: De Lovie | D94: Hoevestallen (18 - domein) | E94: PV-panelen | F94: West-Vlaanderen | G94: 16581 | H94: 2025-05-09
A95: RPS-613-12 | B95: Subsidie-eenheid VAPH | C95: ozc Sint-Vincentius | D95: vzw Ondersteunings-en zorgcentrum Sint-Vincentius | E95: Relighting | F95: Oost-Vlaanderen | G95: 115872.6 | H95: 2025-05-09
A96: RPE-1263-1 | B96: Algemeen ziekenhuis | C96: Emmaüs | D96: AZM/1 | E96: PV-panelen | F96: Antwerpen | G96: 375000 | H96: 2025-05-09
A97: RPS-1263-2 | B97: Algemeen ziekenhuis | C97: Emmaüs | D97: AZM/1 | E97: PV-panelen | F97: Antwerpen | G97: 46703 | H97: 2025-05-09
A98: RPS-1263-3 | B98: Algemeen ziekenhuis | C98: Emmaüs | D98: AZM/1 | E98: PV-panelen | F98: Antwerpen | G98: 70977 | H98: 2025-05-09
A99: RPS-1112-5 | B99: Groepsopvang | C99: De ukkies vzw | D99: Erasmuslaan | E99: Renovatie ventilatie | F99: Limburg | G99: 30700 | H99: 2025-05-09
A100: RPS-1264-1 | B100: Organisatie voor Bijzondere Jeugdzorg | C100: DE WAAIBURG | D100: JAN RAP | E100: PV-panelen | F100: Antwerpen | G100: 1259 | H100: 2025-05-09
A101: RPS-1265-1 | B101: Organisatie voor Bijzondere Jeugdzorg | C101: BLIJ LEVEN | D101: Gebouw AB | E101: PV-panelen | F101: Oost-Vlaanderen | G101: 8896 | H101: 2025-05-09
A102: RPS-1217-6 | B102: Groepsopvang | C102: Kinderopvang de Duinhuisjes | D102: kinderdagverblijf de Duinhummeltjes | E102: Spouwmuur | F102: West-Vlaanderen | G102: 41577.19 | H102: 2025-05-09
A103: RPS-1217-5 | B103: Groepsopvang | C103: Kinderopvang de Duinhuisjes | D103: kinderdagverblijf de Duinhummeltjes | E103: Relighting/relamping | F103: West-Vlaanderen | G103: 3300 | H103: 2025-05-09
A104: RPS-1266-1 | B104: Groepsopvang | C104: Kinderopvang de Duinhuisjes | D104: Kinderdagverblijf De Peuterhaven | E104: Relighting/relamping | F104: West-Vlaanderen | G104: 4500 | H104: 2025-05-09
A105: RPS-1267-1 | B105: Groepsopvang | C105: Kinderopvang de Duinhuisjes | D105: t Bremhuisje | E105: Relighting/relamping | F105: West-Vlaanderen | G105: 6600 | H105: 2025-05-09
A106: RPS-19-3 | B106: Subsidie-eenheid VAPH | C106: De Kade | D106: Campus Spermalie | E106: PV-panelen | F106: West-Vlaanderen | G106: 17960 | H106: 2025-05-09
A107: RPS-1268-1 | B107: Subsidie-eenheid VAPH | C107: De Kade | D107: De Kade Elisabeth Zorghestraat 4 | E107: PV-panelen | F107: West-Vlaanderen | G107: 5412 | H107: 2025-05-09
A108: RPS-1269-1 | B108: Subsidie-eenheid VAPH | C108: De Kade | D108: De Vlier | E108: PV-panelen | F108: West-Vlaanderen | G108: 1236 | H108: 2025-05-09
A109: RPS-1270-1 | B109: Subsidie-eenheid VAPH | C109: De Kade | D109: Ginkgo | E109: PV-panelen | F109: West-Vlaanderen | G109: 8413 | H109: 2025-05-09
A110: RPS-268-3 | B110: Subsidie-eenheid VAPH | C110: De Kade | D110: Het Vlot | E110: PV-panelen | F110: West-Vlaanderen | G110: 3866 | H110: 2025-05-09
A111: RPS-269-3 | B111: Subsidie-eenheid VAPH | C111: De Kade | D111: Oude Dorpsweg | E111: PV-panelen | F111: West-Vlaanderen | G111: 4339 | H111: 2025-05-09
A112: RPS-270-3 | B112: Subsidie-eenheid VAPH | C112: De Kade | D112: Pastorie | E112: PV-panelen | F112: West-Vlaanderen | G112: 2536 | H112: 2025-05-09
A113: RPS-271-5 | B113: Subsidie-eenheid VAPH | C113: De Kade | D113: Paviljoen 1 | E113: PV-panelen | F113: West-Vlaanderen | G113: 2294 | H113: 2025-05-09
A114: RPS-1271-2 | B114: Groepsopvang | C114: Mezennestje | D114: Mezennestje vzw | E114: Overige | F114: West-Vlaanderen | G114: 2980 | H114: 2025-05-09
A115: RPS-1271-4 | B115: Groepsopvang | C115: Mezennestje | D115: Mezennestje vzw | E115: Regeltechnisch | F115: West-Vlaanderen | G115: 660 | H115: 2025-05-09
A116: RPS-1271-3 | B116: Groepsopvang | C116: Mezennestje | D116: Mezennestje vzw | E116: PV-panelen | F116: West-Vlaanderen | G116: 591 | H116: 2025-05-09
A117: RPS-1271-1 | B117: Groepsopvang | C117: Mezennestje | D117: Mezennestje vzw | E117: Isoleren pompen/kranen/hydraulica | F117: West-Vlaanderen | G117: 2730 | H117: 2025-05-09
A118: RPS-1272-1 | B118: Subsidie-eenheid VAPH | C118: Oranje | D118: O´berge | E118: PV-panelen | F118: West-Vlaanderen | G118: 1372 | H118: 2025-05-09
A119: RPS-1273-2 | B119: Organisatie voor Bijzondere Jeugdzorg | C119: JONGERENZORG ZUID-WEST-VLAANDEREN | D119: Aventurijn | E119: Relamping | F119: West-Vlaanderen | G119: 591.6 | H119: 2025-05-09
A120: RPS-1273-3 | B120: Organisatie voor Bijzondere Jeugdzorg | C120: JONGERENZORG ZUID-WEST-VLAANDEREN | D120: Aventurijn | E120: Relighting | F120: West-Vlaanderen | G120: 174 | H120: 2025-05-09
A121: RPS-1273-4 | B121: Organisatie voor Bijzondere Jeugdzorg | C121: JONGERENZORG ZUID-WEST-VLAANDEREN | D121: Aventurijn | E121: Relighting | F121: West-Vlaanderen | G121: 199 | H121: 2025-05-09
A122: RPS-1273-5 | B122: Organisatie voor Bijzondere Jeugdzorg | C122: JONGERENZORG ZUID-WEST-VLAANDEREN | D122: Aventurijn | E122: Relighting | F122: West-Vlaanderen | G122: 1537.8 | H122: 2025-05-09
A123: RPS-1273-6 | B123: Organisatie voor Bijzondere Jeugdzorg | C123: JONGERENZORG ZUID-WEST-VLAANDEREN | D123: Aventurijn | E123: Relighting | F123: West-Vlaanderen | G123: 185.4 | H123: 2025-05-09
A124: RPS-1273-7 | B124: Organisatie voor Bijzondere Jeugdzorg | C124: JONGERENZORG ZUID-WEST-VLAANDEREN | D124: Aventurijn | E124: Relighting | F124: West-Vlaanderen | G124: 357 | H124: 2025-05-09
A125: RPS-1273-1 | B125: Organisatie voor Bijzondere Jeugdzorg | C125: JONGERENZORG ZUID-WEST-VLAANDEREN | D125: Aventurijn | E125: PV-panelen | F125: West-Vlaanderen | G125: 3989 | H125: 2025-05-09
A126: RPS-888-2 | B126: Organisatie voor Bijzondere Jeugdzorg | C126: De Oever | D126: VZW De Oever - Centraal gebouw | E126: Relighting | F126: Limburg | G126: 3383 | H126: 2025-05-09
A127: RPS-889-3 | B127: Organisatie voor Bijzondere Jeugdzorg | C127: De Oever | D127: VZW De Oever - Kidscampus | E127: PV-panelen | F127: Limburg | G127: 4469 | H127: 2025-05-09
A128: RPS-890-4 | B128: Groepsopvang | C128: VZW KINDEROPVANG 'T EEKHOORNTJE | D128: Kinderopvang 't Eekhoorntje | E128: PV-panelen | F128: Vlaams-Brabant | G128: 4000 | H128: 2025-05-09
A129: RPS-1274-1 | B129: Subsidie-eenheid VAPH | C129: Centrum voor Jongens en Meisjes met individuele Begeleiding | D129: Krauwelenhof | E129: PV-panelen | F129: Antwerpen | G129: 853 | H129: 2025-05-09
A130: RPS-1274-2 | B130: Subsidie-eenheid VAPH | C130: Centrum voor Jongens en Meisjes met individuele Begeleiding | D130: Krauwelenhof | E130: PV-panelen | F130: Antwerpen | G130: 1968 | H130: 2025-05-09
A131: RPS-245-2 | B131: Woonzorgcentrum | C131: WOONZORGCENTRUM ST. VINCENTIUS | D131: WZC Sint-Vincentius vzw | E131: PV-panelen | F131: Antwerpen | G131: 14239 | H131: 2025-05-09
A132: RPE-113-14 | B132: Algemeen ziekenhuis | C132: Katholieke Universiteit te Leuven | D132: UZ Leuven - Campus Gasthuisberg | E132: PV-panelen | F132: Vlaams-Brabant | G132: 433052.5 | H132: 2025-05-09
A133: RPS-1120-3 | B133: Subsidie-eenheid VAPH | C133: Ubuntu Achtkanter | D133: Beeklaan 79 | E133: Relighting/relamping | F133: West-Vlaanderen | G133: 10230 | H133: 2025-05-09
A134: RPS-1120-2 | B134: Subsidie-eenheid VAPH | C134: Ubuntu Achtkanter | D134: Beeklaan 79 | E134: PV-panelen | F134: West-Vlaanderen | G134: 899 | H134: 2025-05-09
A135: RPS-1275-1 | B135: Subsidie-eenheid VAPH | C135: Ubuntu Achtkanter | D135: Beeklaan 79 a | E135: Relighting/relamping | F135: West-Vlaanderen | G135: 5287 | H135: 2025-05-09
A136: RPS-1276-1 | B136: Subsidie-eenheid VAPH | C136: Ubuntu Achtkanter | D136: Beukenlaan 47 | E136: PV-panelen | F136: West-Vlaanderen | G136: 13386 | H136: 2025-05-09
A137: RPS-1276-2 | B137: Subsidie-eenheid VAPH | C137: Ubuntu Achtkanter | D137: Beukenlaan 47 | E137: Relighting/relamping | F137: West-Vlaanderen | G137: 7190 | H137: 2025-05-09
A138: RPS-1221-5 | B138: Subsidie-eenheid VAPH | C138: Ubuntu Achtkanter | D138: Blokkestraat 29 | E138: Relighting/relamping | F138: West-Vlaanderen | G138: 10509 | H138: 2025-05-09
A139: RPS-1221-4 | B139: Subsidie-eenheid VAPH | C139: Ubuntu Achtkanter | D139: Blokkestraat 29 | E139: PV-panelen | F139: West-Vlaanderen | G139: 2372 | H139: 2025-05-09
A140: RPS-1222-3 | B140: Subsidie-eenheid VAPH | C140: Ubuntu Achtkanter | D140: Julius Sabbestraat 45 | E140: Relighting/relamping | F140: West-Vlaanderen | G140: 4830 | H140: 2025-05-09
A141: RPS-1277-1 | B141: Subsidie-eenheid VAPH | C141: Ubuntu Achtkanter | D141: Plein 25 | E141: Relighting/relamping | F141: West-Vlaanderen | G141: 831 | H141: 2025-05-09
A142: RPS-1278-1 | B142: Subsidie-eenheid VAPH | C142: Ubuntu Achtkanter | D142: Plein 33 | E142: Relighting | F142: West-Vlaanderen | G142: 706 | H142: 2025-05-09
A143: RPS-1279-1 | B143: Subsidie-eenheid VAPH | C143: Ubuntu Achtkanter | D143: Plein 34 | E143: Relighting | F143: West-Vlaanderen | G143: 108 | H143: 2025-05-09
A144: RPS-1280-1 | B144: Subsidie-eenheid VAPH | C144: Ubuntu Achtkanter | D144: Plein 36 | E144: Relighting | F144: West-Vlaanderen | G144: 332 | H144: 2025-05-09
A145: RPS-1225-3 | B145: Subsidie-eenheid VAPH | C145: Ubuntu Achtkanter | D145: Sint Denijseweg 71 | E145: PV-panelen | F145: West-Vlaanderen | G145: 18350 | H145: 2025-05-09
A146: RPS-1225-4 | B146: Subsidie-eenheid VAPH | C146: Ubuntu Achtkanter | D146: Sint Denijseweg 71 | E146: Relighting/relamping | F146: West-Vlaanderen | G146: 15360 | H146: 2025-05-09
A147: RPS-906-7 | B147: Subsidie-eenheid VAPH | C147: PEGODE vzw | D147: WH Schilde | E147: PV-panelen | F147: Antwerpen | G147: 12297 | H147: 2025-05-09
A148: RPS-1281-1 | B148: Organisatie voor naadloze flexibele trajecten onderwijs - welzijn | C148: Lejo | D148: Lejo Gent | E148: PV-panelen | F148: Antwerpen | G148: 23819 | H148: 2025-05-09
A149: RPS-1281-2 | B149: Organisatie voor naadloze flexibele trajecten onderwijs - welzijn | C149: Lejo | D149: Lejo Gent | E149: Relighting | F149: Antwerpen | G149: 9170.4 | H149: 2025-05-09
A150: RPS-654-6 | B150: Psychiatrisch ziekenhuis | C150: Psychiatrisch Centrum Sint-Hiëronymus | D150: PC Sint-Hieronymus | E150: PV-panelen | F150: Oost-Vlaanderen | G150: 4938 | H150: 2025-05-09
A151: RPS-285-5 | B151: Woonzorgcentrum | C151: Goddelijke Voorzienigheid - Vereniging voor Huisvesting en Verzorging van Bejaarden | D151: vzw Goddelijke Voorzienigheid | E151: PV-panelen | F151: Vlaams-Brabant | G151: 14171 | H151: 2025-05-09
A152: RPS-918-6 | B152: Subsidie-eenheid VAPH | C152: DE VIJVER | D152: De Hoeve Activiteitencentrum | E152: Relighting/relamping | F152: Antwerpen | G152: 2000 | H152: 2025-05-09
A153: RPS-1282-1 | B153: Subsidie-eenheid VAPH | C153: DE VIJVER | D153: De Lelie | E153: Relighting/relamping | F153: Antwerpen | G153: 5597 | H153: 2025-05-09
A154: RPS-1283-1 | B154: Subsidie-eenheid VAPH | C154: DE VIJVER | D154: Drakenhof | E154: Relighting/relamping | F154: Antwerpen | G154: 1566 | H154: 2025-05-09
A155: RPS-1135-2 | B155: Subsidie-eenheid VAPH | C155: DE VIJVER | D155: Hoekhuis | E155: Relighting/relamping | F155: Antwerpen | G155: 282 | H155: 2025-05-09
A156: RPS-663-2 | B156: Subsidie-eenheid VAPH | C156: DE VIJVER | D156: Hoofdgebouw Dorp vzw | E156: Relighting/relamping | F156: Antwerpen | G156: 22800 | H156: 2025-05-09
A157: RPS-1136-2 | B157: Subsidie-eenheid VAPH | C157: DE VIJVER | D157: Rijhuis | E157: Relighting/relamping | F157: Antwerpen | G157: 318 | H157: 2025-05-09
A158: RPS-1284-1 | B158: Subsidie-eenheid VAPH | C158: DE VIJVER | D158: Tyrolerhof | E158: Relighting/relamping | F158: Antwerpen | G158: 949 | H158: 2025-05-09
A159: RPS-665-13 | B159: Subsidie-eenheid VAPH | C159: Mariënstede vzw | D159: vzw Mariënstede | E159: PV-panelen | F159: West-Vlaanderen | G159: 2758 | H159: 2025-05-09
A160: RPS-945-6 | B160: Subsidie-eenheid VAPH | C160: Mariënstede vzw | D160: De HUizen | E160: PV-panelen | F160: West-Vlaanderen | G160: 2987 | H160: 2025-05-09
A161: RPS-1285-1 | B161: Woonzorgcentrum | C161: Maria Middelares | D161: MARIA MIDDELARES- Gebouw 31149047 | E161: PV-panelen | F161: West-Vlaanderen | G161: 14559 | H161: 2025-05-09
A162: RPS-1286-1 | B162: Subsidie-eenheid VAPH | C162: Talander vzw | D162: Talander | E162: Monitoring | F162: Antwerpen | G162: 789 | H162: 2025-05-09
A163: RPS-1286-2 | B163: Subsidie-eenheid VAPH | C163: Talander vzw | D163: Talander | E163: Warmtepompen en koeling | F163: Antwerpen | G163: 18000 | H163: 2025-05-09
A164: RPS-1286-3 | B164: Subsidie-eenheid VAPH | C164: Talander vzw | D164: Talander | E164: Warmtepompen en koeling | F164: Antwerpen | G164: 10800 | H164: 2025-05-09
A165: RPS-465-3 | B165: Subsidie-eenheid VAPH | C165: Centrum van de Oostkust voor Revalidatie en Welzijnszorg | D165: De Klinker | E165: Comfortverhoging | F165: West-Vlaanderen | G165: 114000 | H165: 2025-05-09
A166: RPS-465-4 | B166: Subsidie-eenheid VAPH | C166: Centrum van de Oostkust voor Revalidatie en Welzijnszorg | D166: De Klinker | E166: PV-panelen | F166: West-Vlaanderen | G166: 5961 | H166: 2025-05-09
A167: RPS-466-2 | B167: Subsidie-eenheid VAPH | C167: Centrum van de Oostkust voor Revalidatie en Welzijnszorg | D167: Het Baken | E167: Relighting | F167: West-Vlaanderen | G167: 6720 | H167: 2025-05-09
A168: RPS-1287-1 | B168: Subsidie-eenheid VAPH | C168: Centrum van de Oostkust voor Revalidatie en Welzijnszorg | D168: Het Vlot | E168: Relighting | F168: West-Vlaanderen | G168: 2400 | H168: 2025-05-09
A169: RPS-679-10 | B169: Woonzorgcentrum | C169: RUSTHUIS STRIJLAND | D169: WZC Strijland | E169: Relighting/relamping | F169: Vlaams-Brabant | G169: 6480 | H169: 2025-05-09
A170: RPS-679-8 | B170: Woonzorgcentrum | C170: RUSTHUIS STRIJLAND | D170: WZC Strijland | E170: Dakisolatie | F170: Vlaams-Brabant | G170: 1170 | H170: 2025-05-09
A171: RPS-679-9 | B171: Woonzorgcentrum | C171: RUSTHUIS STRIJLAND | D171: WZC Strijland | E171: PV-panelen | F171: Vlaams-Brabant | G171: 2159 | H171: 2025-05-09
A172: RPS-1288-1 | B172: Subsidie-eenheid VAPH | C172: Inspirant in't Dorp | D172: Inspirant in 't dorp - HTH (atelier en stal) | E172: Relamping | F172: West-Vlaanderen | G172: 1826 | H172: 2025-05-09
A173: RPS-1289-2 | B173: Subsidie-eenheid VAPH | C173: Inspirant in't Dorp | D173: Inspirant in 't dorp - HTH (atelier en stal) | E173: Relighting | F173: West-Vlaanderen | G173: 7914 | H173: 2025-05-09
A174: RPS-1290-3 | B174: Subsidie-eenheid VAPH | C174: Inspirant in't Dorp | D174: Inspirant in 't dorp - HTH (huis en loods) | E174: Relighting | F174: West-Vlaanderen | G174: 4587.6 | H174: 2025-05-09
A175: RPS-1291-4 | B175: Subsidie-eenheid VAPH | C175: Inspirant in't Dorp | D175: Inspirant in 't dorp - HTH (huis en loods) | E175: Relighting | F175: West-Vlaanderen | G175: 3439 | H175: 2025-05-09
A176: RPS-1292-1 | B176: Subsidie-eenheid VAPH | C176: Inspirant in't Dorp | D176: Inspirant in 't dorp - MKL 2 | E176: PV-panelen | F176: West-Vlaanderen | G176: 4513 | H176: 2025-05-09
A177: RPS-1293-1 | B177: Subsidie-eenheid VAPH | C177: Inspirant in't Dorp | D177: Inspirant in 't dorp - Vincentlaan | E177: PV-panelen | F177: West-Vlaanderen | G177: 2669 | H177: 2025-05-09
A178: RPS-1294-1 | B178: Subsidie-eenheid VAPH | C178: Inspirant in't Dorp | D178: Inspirant in 't dorp- ELZ 3 | E178: PV-panelen | F178: West-Vlaanderen | G178: 3636 | H178: 2025-05-09
A179: RPS-372-3 | B179: Woonzorgcentrum | C179: Résidence Marie-Astrid | D179: NV RESIDENCE MARIE-ASTRID | E179: PV-panelen | F179: West-Vlaanderen | G179: 11748 | H179: 2025-05-09
A180: RPS-1065-5 | B180: Subsidie-eenheid VAPH | C180: VZW Kompas - dagcentrum | D180: VZW Kompas Omega | E180: PV-panelen | F180: Oost-Vlaanderen | G180: 357 | H180: 2025-05-09
A181: RPS-1295-1 | B181: Algemeen ziekenhuis | C181: Sint-Trudo Ziekenhuis | D181: Campus Rummenweg | E181: PV-panelen | F181: Limburg | G181: 4701 | H181: 2025-05-09
A182: RPS-1296-1 | B182: Algemeen ziekenhuis | C182: Sint-Trudo Ziekenhuis | D182: Campus Sint-Jozef | E182: Relighting/relamping | F182: Limburg | G182: 22298 | H182: 2025-05-09
A183: RPE-1297-3 | B183: Woonzorgcentrum | C183: Curando O.L.V. van 7 weeën Ruiselede vzw | D183: De Torre | E183: Regeltechnisch | F183: West-Vlaanderen | G183: 2331 | H183: 2025-05-09
A184: RPE-1297-1 | B184: Woonzorgcentrum | C184: Curando O.L.V. van 7 weeën Ruiselede vzw | D184: De Torre | E184: Dakisolatie hellend dak | F184: West-Vlaanderen | G184: 204337.8 | H184: 2025-05-09
A185: RPE-1297-2 | B185: Woonzorgcentrum | C185: Curando O.L.V. van 7 weeën Ruiselede vzw | D185: De Torre | E185: Dakisolatie plat dak | F185: West-Vlaanderen | G185: 10835.1 | H185: 2025-05-09
A186: RPE-1297-5 | B186: Woonzorgcentrum | C186: Curando O.L.V. van 7 weeën Ruiselede vzw | D186: De Torre | E186: Stookplaatsrenovatie | F186: West-Vlaanderen | G186: 82206 | H186: 2025-05-09
A187: RPS-1297-4 | B187: Woonzorgcentrum | C187: Curando O.L.V. van 7 weeën Ruiselede vzw | D187: De Torre | E187: Schrijnwerkrenovatie Hout | F187: West-Vlaanderen | G187: 123171 | H187: 2025-05-09
A188: RPS-1298-1 | B188: Beschut wonen | C188: De Hulster | D188: Statiestraat | E188: PV-panelen | F188: Vlaams-Brabant | G188: 2580 | H188: 2025-05-09
A189: RPS-725-7 | B189: Beschut wonen | C189: DE HULSTER | D189: Vaart | E189: PV-panelen | F189: Vlaams-Brabant | G189: 3989 | H189: 2025-05-09
A190: RPS-1299-1 | B190: Woonzorgcentrum | C190: Zorgnetwerk Trento | D190: Campus De Vliet | E190: Isoleren pompen/kranen/hydraulica | F190: Oost-Vlaanderen | G190: 2404 | H190: 2025-05-09
A191: RPS-1299-2 | B191: Woonzorgcentrum | C191: Zorgnetwerk Trento | D191: Campus De Vliet | E191: Monitoring | F191: Oost-Vlaanderen | G191: 2115 | H191: 2025-05-09
A192: RPS-1299-4 | B192: Woonzorgcentrum | C192: Zorgnetwerk Trento | D192: Campus De Vliet | E192: Relighting/relamping | F192: Oost-Vlaanderen | G192: 20834 | H192: 2025-05-09
A193: RPS-1299-5 | B193: Woonzorgcentrum | C193: Zorgnetwerk Trento | D193: Campus De Vliet | E193: Renovatie beglazing | F193: Oost-Vlaanderen | G193: 1350 | H193: 2025-05-09
A194: RPS-1299-3 | B194: Woonzorgcentrum | C194: Zorgnetwerk Trento | D194: Campus De Vliet | E194: PV-panelen | F194: Oost-Vlaanderen | G194: 30890 | H194: 2025-05-09
A195: RPS-1300-1 | B195: Woonzorgcentrum | C195: Zorgnetwerk Trento | D195: Campus De Vliet - Nieuwbouw | E195: Monitoring | F195: Oost-Vlaanderen | G195: 824 | H195: 2025-05-09
A196: RPS-1301-3 | B196: Woonzorgcentrum | C196: Zorgnetwerk Trento | D196: Campus Sint-Jozef | E196: Relighting/relamping | F196: Oost-Vlaanderen | G196: 392 | H196: 2025-05-09
A197: RPS-1301-4 | B197: Woonzorgcentrum | C197: Zorgnetwerk Trento | D197: Campus Sint-Jozef | E197: Relighting/relamping | F197: Oost-Vlaanderen | G197: 7128 | H197: 2025-05-09
A198: RPS-1301-2 | B198: Woonzorgcentrum | C198: Zorgnetwerk Trento | D198: Campus Sint-Jozef | E198: Regeltechn.ventilatie | F198: Oost-Vlaanderen | G198: 3360 | H198: 2025-05-09
A199: RPS-1301-1 | B199: Woonzorgcentrum | C199: Zorgnetwerk Trento | D199: Campus Sint-Jozef | E199: PV-panelen | F199: Oost-Vlaanderen | G199: 5675 | H199: 2025-05-09
A200: RPS-1302-1 | B200: Woonzorgcentrum | C200: Zorgnetwerk Trento | D200: Campus Sint-Jozef afdeling den blancquaert | E200: Isoleren pompen/kranen/hydraulica | F200: Oost-Vlaanderen | G200: 1618 | H200: 2025-05-09
... 61 more rows

Sheet Infrastructuurforfait PMH
A1: Goedgekeurde projecten persoonsvolgende financiering van 1 januari tot 30 november 2025
A2: Infrastructuurforfait personen met een handicap: Deze betoelagingsvorm is van toepassing voor de meerderjarige personen met een handicap. Een voorziening kan een vraag indienen tot het bekomen van een akkoord infrastructuurforfait voor een beoogde investering. Zodra desbetreffende infrastructuur in gebruik wordt genomen, start de uitbetaling van het infrastructuurforfait. De grootte van dat forfait is afhankelijk van de zorgzwaarte van de personen met een handicap die gebruik maakt van de infrastructuur en wordt aangepast aan de bezetting. Rekening houdend met voorgaande elementen wordt het forfait voor onbepaalde duur jaarlijks uitbetaald zolang er bezetting is. Het forfait moet door de voorziening als korting doorgerekend worden naar de persoon met een handicap. Het forfait wordt jaarlijks aangerekend op de VIPA-kredieten op het moment van uitbetaling. Het overzicht bevat de voorzieningen die in 2025 een akkoord infrastructuurforfait verkregen. De betaling van subsidies zal dus voor deze projecten starten vanaf ingebruikname.
A3: Frequentie van actualisatie van deze lijst: als er een oproep is geweest en de middelen daarvoor zijn vastgelegd (1 keer per jaar).
A4: Dossiernummer | B4: Provincie | C4: Gemeente | D4: Initiatiefnemer | E4: Voorziening | F4: Project | G4: Globale investeringskost all-in (BTW + studiekosten) door de voorziening opgegeven | H4: Verleende infrastructuurforfaits | I4: Goedkeuring
A5: PH907-W-IDB | B5: West-Vlaanderen | C5: Brugge | D5: Viro vzw | E5: Viro | F5: nieuwbouw voor volwassenen met een verstandelijke beperking met 20 kamers en 4 studio' s voor 24 gebruikers met woonondersteuning (capaciteitsvervanging) en voor 26,91 gebruikers met collectieve zorg in de Koning Albert I-laan 188 in Brugge (Sint-Michiels-Brugge) | G5: 5287047 | H5: 101022.11 | I5: 2025-02-10
A6: PH905-A-IDB | B6: Antwerpen | C6: Zoersel | D6: Emmaüs vzw | E6: Monnikenheide-Spectrum | F6: nieuwbouw en verbouwing voor 27 gebruikers met woonondersteuning en collectieve zorg en voor 26,65 gebruikers met dagondersteuning, project Gildenhuis, in de Stationsstraat 57-59-61 in Essen | G6: 9300000 | H6: 159532.16 | I6: 2025-03-24
A7: PH909-O-IDB | B7: Oost-Vlaanderen | C7: Sint-Niklaas | D7: De Klokke vzw | E7: De Klokke | F7: nieuwbouw voor 8 gebruikers met woonondersteuning en collectieve zorg en voor 2 gebruikers met dagondersteuning (allemaal capaciteitsuitbreiding) in de Meerstraat 39 in Stekene | G7: 1913934 | H7: 35687.52 | I7: 2025-03-24
A8: PH869-B-IDB | B8: Vlaams-Brabant | C8: Roosdaal | D8: Zonnelied vzw | E8: Zonnelied | F8: nieuwbouw voor project De Schakel voor 35 gebruikers met woonondersteuning en voor 17,66 gebruikers met collectieve zorg in de Frans Baetensstraat 55 in Lennik | G8: 5300000 | H8: 107508.54 | I8: 2025-04-14
A9: PH903-W-IDB | B9: West-Vlaanderen | C9: Jabbeke | D9: Huis Snello vzw | E9: Toontjeshuis | F9: nieuwbouw voor 14 gebruikers met woonondersteuning en collectieve zorg en voor 1 gebruiker met dagondersteuning (allemaal capaciteitsuitbreiding) in de Oudenburgweg 42A in Jabbeke (Varsenare) | G9: 3259314 | H9: 57542.76 | I9: 2025-04-29
A10: PH778-tris-A-MCI-PVF | B10: Antwerpen | C10: Ranst | D10: Emmaüs vzw | E10: Dienstverleningscentrum Zevenbergen | F10: nieuwbouw voor 31 plaatsen met woonondersteuning en voor 6,44 plaatsen met collectieve zorg in de Boerenkrijglaan 25 in Ranst | G10: 5569281 | H10: 79508.18 | I10: 2025-05-13
A11: PH906-A-IDB | B11: Antwerpen | C11: Niel | D11: Pegode vzw | E11: Pegode | F11: ingrijpende duurzame verbouwing en nieuwbouw voor 53,92 gebruikers met dagondersteuning (capaciteitsvervanging) in de Rooseveltstraat 26 in Niel | G11: 4234728 | H11: 105907.51 | I11: 2025-05-13
A12: PH913-O-IDB | B12: Oost-Vlaanderen | C12: Lievegem | D12: Dienstverleningscentrum De Triangel vzw | E12: Dienstverleningscentrum De Triangel | F12: nieuwbouw (vervanging) voor het Dienstverleningscentrum De Triangel voor 37 gebruikers met woonondersteuning en voor 12,49 gebruikers met collectieve zorg (beide capaciteitsvervanging) in de Molendreef 16 in Lievegem | G12: 19900000 | H12: 98502.09 | I12: 2025-05-13
A13: PH915-W-IDB | B13: West-Vlaanderen | C13: Poperinge | D13: De Lovie vzw | E13: De Lovie | F13: nieuwbouw voor 38 gebruikers met woonondersteuning en voor 17,22 gebruikers met collectieve zorg (capaciteitsvervanging) voor het project 'Bomensite 2' op het woonpark De Lovie in de Krombeekseweg 82 in Poperinge | G13: 7000000 | H13: 109835.23 | I13: 2025-06-03
A14: PH920-O-IDB | B14: Oost-Vlaanderen | C14: Deinze | D14: Leieborg vzw | E14: Leieborg | F14: aankoop met verbouwing voor 78 gebruikers met woonondersteuning (capaciteitsvervanging) en voor 46,98 gebruikers met collectieve zorg op het domein De Nieuwe Ceder in de Parijsestraat 34 in Deinze | G14: 20500000 | H14: 248416.86 | I14: 2025-09-02
A15: PH918-L-IDB | B15: Limburg | C15: Hasselt | D15: Organisatie Broeders van Liefde vzw | E15: Orthopedagogisch Centrum Sint-Ferdinand | F15: verbouwing van het tehuis Den Heuvel Hasselt voor 12 gebruikers met woonondersteuning (11 capaciteitsvervanging en 1 capaciteitsuitbreiding) en voor 7,62 gebruikers met collectieve zorg op de Luikersteenweg 179 in Hasselt | G15: 1528378 | H15: 38992.42 | I15: 2025-10-11
A16: PH914-W-IDB | B16: West-Vlaanderen | C16: Brugge | D16: Toontjeshuis geDREven vzw | E16: Ouderinitiatief Toontjeshuis geDREven | F16: nieuwbouw voor 15 gebruikers met woonondersteuning en voor 8,81 gebruikers collectieve zorg (alles capaciteitsuitbreiding) in de Middelburgsteenweg 11A in Damme (Moerkerke) | G16: 3164837 | H16: 47329.07 | I16: 2025-10-27 | AO16: =IF(AM16<>"","A",IF(M16<>"","B",IF(#REF!<>"","C",IF(L16<>"","D",IF(K16<>"","E",IF(AN16<>"","F","G")))))) -> 
F17: Totaal goedgekeurde investeringen | H17: =SUM(H5:H16) -> 1189784.45
B19: Overzicht per provincie
B20: Antwerpen | C20: =SUMIF($B$5:$B$18,B20,$H$5:$H$18) -> 344947.85
B21: Limburg | C21: =SUMIF($B$5:$B$18,B21,$H$5:$H$18) -> 38992.42
B22: Oost-Vlaanderen | C22: =SUMIF($B$5:$B$18,B22,$H$5:$H$18) -> 382606.47
B23: Vlaams-Brabant | C23: =SUMIF($B$5:$B$18,B23,$H$5:$H$18) -> 107508.54
B24: West-Vlaanderen | C24: =SUMIF($B$5:$B$18,B24,$H$5:$H$18) -> 315729.17
B25: Totaal | C25: =SUM(C20:C24) -> 1189784.45
B27: Brussel | C27: =SUMIF($B$5:$B$18,B27,$H$5:$H$18) -> 0
B28: Algemeen totaal | C28: =SUM(C27,C25) -> 1189784.45

Sheet Strategisch forfait ZH
A1: Goedgekeurde projecten strategisch forfait van 1 januari tot 30 november 2025
A2: Strategisch forfait ziekenhuizen (voor nieuwbouw, uitbreiding van bestaande capaciteit en herconditionerings-investeringen): een ziekenhuis kan een vraag indienen tot het bekomen van een akkoord strategisch forfait. Zodra desbetreffende infrastructuur in gebruik wordt genomen, start de uitbetaling van het strategisch forfait. De grootte van dat forfait is afhankelijk van een aantal parameters (bv. aantal operatiekwartieren, aantal bedden) en wordt aangepast aan het effectief gebruik van die parameters. Rekening houdend met voorgaande elementen wordt het forfait voor onbepaalde duur jaarlijks uitbetaald zolang de onderliggende parameters in gebruik zijn. Het forfait wordt jaarlijks aangerekend op de VIPA-kredieten op het moment van uitbetaling. Het overzicht bevat de ziekenhuizen die in 2025 een akkoord strategisch forfait verkregen waarbij het bedrag van het jaarlijks strategisch forfait werd bepaald. De betaling van de investeringssubsidies voor deze dossiers start dus vanaf ingebruikname.
A3: Frequentie van actualisatie van deze lijst: maandelijks (begin van de maand).
A4: Dossiernummer | B4: Provincie | C4: Gemeente | D4: Type ziekenhuis | E4: Initiatiefnemer | F4: Voorziening | G4: Project | H4: Globale investeringskost all-in (BTW + studiekosten) door de voorziening opgegeven | I4: Verleende strategische forfaits op kruissnelheid (incl. intresten) | J4: Goedkeuring
A5: 126-ZH246 | B5: Oost-Vlaanderen | C5: Aalst | D5: AZ | E5: Algemeen Stedelijk Ziekenhuis Aalst Autonome Verzorgingsinstelling | F5: Algemeen Stedelijk Ziekenhuis | G5: uitbreiding van blok T met 114 bedden klassieke hospitalisatie (capaciteitsvervanging) en 30 plaatsen daghospitalisatie (capaciteitsuitbreiding) voor het Algemeen Stedelijk Ziekenhuis in de Merestraat 80 in Aalst | H5: 83000000 | I5: 1619498.54 | J5: 15/01/2025 (ongunstig)
A6: 901-ZH268 | B6: West-Vlaanderen | C6: Pittem | D6: PZ | E6: Psychiatrisch Ziekenhuis Sint-Jozef vzw | F6: Psychiatrisch Ziekenhuis Sint-Jozef | G6: nieuwbouw verblijfs -en therapie-infrastructuur Zorgprogramma Jeugd (46 k-bedden/plaatsen capaciteitsvervanging, + 7 k(d) reconversie) in de Boterstraat 6 te Pittem | H6: 28264921 | I6: 504560.13 | J6: Gewijzigd akkoord SF 3/06/2025
A7: 901-ZH268tris | B7: West-Vlaanderen | C7: Pittem | D7: PZ | E7: Psychiatrisch Ziekenhuis Sint-Jozef vzw | F7: Psychiatrisch Ziekenhuis Sint-Jozef | G7: realisatie van de ondersteunende diensten voor de bedden buiten het project: nieuwbouw van een verblijfs- en therapie-infrastructuur Zorgprogramma Jeugd en ondersteunende diensten in de Boterstraat 6 in Pittem | I7: 385001.31 | J7: Gewijzigd akkoord SF 3/06/2025
A8: 371-ZH323 | B8: Limburg | C8: Genk | D8: AZ | E8: Ziekenhuis Oost-Limburg AV | F8: Ziekenhuis Oost-Limburg | G8: nieuwbouw voor de kritieke diensten, de verpleegafdeling, de technische dienst en verbouwing van de huidige spoedafdeling naar een chirurgisch dagziekenhuis voor het Ziekenhuis Oost-Limburg in het Synaps Park 1 in Genk | H8: 329356127 | I8: 7003354.94 | J8: 2025-06-27
A9: 397-ZH335 | B9: West-Vlaanderen | C9: Waregem | D9: AZ | E9: Onze-Lieve-Vrouw van Lourdes Ziekenhuis Waregem vzw | F9: Onze-Lieve-Vrouw van Lourdes Ziekenhuis Waregem | G9: nieuwbouw voor een PAAZ-afdeling met 30 bedden, een afdeling Sp loco met 20 bedden, een A-afdeling met 5 stoelen (allemaal capacitietsvervanging) en een dienst voor ambulante motorische revalidatie voor het O.L.V van Lourdesziekenhuis in de Vijfseweg 150 in Waregem | H9: 22395080 | I9: 622717.79 | J9: 2025-07-05
A10: 943-ZH334 | B10: Vlaams-Brabant | C10: Kortenberg | D10: PZ | E10: Zorg KULeuven vzw | F10: Universitair Centrum KULeuven | G10: ingrijpende duurzame verbouwing van het project 'Welzijnstoren' voor UC Sint-jozef voor 30 a(d)- plaatsen + ondersteunende diensten op de Hertogensite in de Kapucijnenvoer 33 te Leuven. | H10: 16900000 | I10: 407990.1 | J10: 2025-10-21
A11: 719-ZH267 | B11: Limburg | C11: Pelt | D11: AZ | E11: Noorderhart vzw | F11: Maria Ziekenhuis Noord-Limburg | G11: uitbreiding van het Algemeen Mariaziekenhuis met een chirurgisch dagziekenhuis, MKA dienst, psychiatrisch dagziekenhuis, educatiedialyse, revalidatiedienst en administratieve afdeling voor 52,14 dagziekenhuisplaatsen, 4 OK-zalen, ondersteunende diensten en de verbouwing van een centrale sterilisatie, gelegen in Maesensveld 1 in Pelt | H11: 57560650 | I11: 111580.33 | J11: Gewijzigd akkoord SF 21/10/2025
A12: 528-ZH241 SF-Hannelore | B12: West-Vlaanderen | C12: Kortrijk | D12: PZ | E12: Groep Zorg Heilige Familie vzw | F12: Psychiatrisch Ziekenhuis Heilige Familie | G12: verbouwing van een voormalig klooster en kapel tot administratief complex met burelen en vergaderaccommodatie voor het Psychiatrisch Ziekenhuis Heilige Familie op het Plein 26 in Kortrijk | H12: 4752381 | I12: 14278.43 | J12: Technische rechtzetting 21/11/2025
A13: 712-ZH289 SF-Hannelore | B13: Vlaams-Brabant | C13: Diest | D13: AZ | E13: Algemeen Ziekenhuis Diest vzw | F13: Algemeen Ziekenhuis Diest | G13: nieuwbouw van een algemeen ziekenhuis voor 98 bedden, 40 plaatsen dagziekenhuis en 6 operatiezalen in de Statiestraat 65 te Diest | H13: 72000000 | I13: 1618.28 | J13: Technische rechtzetting 21/11/2025
G14: Totaal goedgekeurde investeringen | I14: =SUM(I5:I13) -> 10670599.85
B17: Overzicht per provincie | E17: Organisatietype | F17: 2021
B18: Antwerpen | C18: =SUMIF($B$5:$B$15,B18,$I$5:$I$15) -> 0 | E18: AZ | F18: =SUMIF($D$5:$D$15,E18,$I$5:$I$15) -> 9358769.88
B19: Limburg | C19: =SUMIF($B$5:$B$15,B19,$I$5:$I$15) -> 7114935.27 | E19: UZ | F19: =SUMIF($D$5:$D$15,E19,$I$5:$I$15) -> 0
B20: Oost-Vlaanderen | C20: =SUMIF($B$5:$B$15,B20,$I$5:$I$15) -> 1619498.54 | E20: PZ | F20: =SUMIF($D$5:$D$15,E20,$I$5:$I$15) -> 1311829.97
B21: Vlaams-Brabant | C21: =SUMIF($B$5:$B$15,B21,$I$5:$I$15) -> 409608.38 | E21: RZ | F21: =SUMIF($D$5:$D$15,E21,$I$5:$I$15) -> 0
B22: West-Vlaanderen | C22: =SUMIF($B$5:$B$15,B22,$I$5:$I$15) -> 1526557.66 | E22: Algemeen totaal | F22: =SUBTOTAL(9,F18:F21) -> 10670599.85
B23: Totaal | C23: =SUM(C18:C22) -> 10670599.85
B25: Brussel | C25: =SUMIF($B$5:$B$15,B25,$I$5:$I$15) -> 0
B26: Algemeen totaal | C26: =SUM(C25,C23) -> 10670599.85

Sheet Toestelfinanciering
A1: Goedgekeurde projecten toestelfinanciering van 1 januari tot 30 november 2025
A2: Toestelfinanciering ziekenhuizen: Het VIPA verstrekt een forfaitaire betoelaging voor volgende zware medische apparatuur in de ziekenhuizen:
A3: - Bestralingsapparaat: een apparaat dat geïnstalleerd is bij een dienst voor radiotherapie
A4: - NMR: een magnetische resonantietomograaf
A5: - PET-scanner
A6: Frequentie van actualisatie van deze lijst: 1 maal per jaar (eind december).
A7: Erk. Nr. | B7: Type | C7: Voorziening | D7: Provincie | E7: Gemeente | F7: 2025 | H7: Organisatietype | I7: 2025
A8: 009 | B8: AZ | C8: Ziekenhuis aan de Stroom | D8: Antwerpen | E8: Antwerpen | F8: 542566.76 | H8: AZ | I8: =SUMIF(B8:B57,"AZ",F8:F57) -> 10847560.95
A9: 012 | B9: AZ | C9: Algemeen Ziekenhuis Sint-Blasius | D9: Oost-Vlaanderen | E9: Dendermonde | F9: 114188.92 | H9: UZ | I9: =SUMIF(B8:B57,"UZ",F8:F57) -> 2765661.77
A10: 017 | B10: AZ | C10: Algemeen Ziekenhuis Maria-Middelares | D10: Oost-Vlaanderen | E10: Gent | F10: 114188.92 | H10: PZ | I10: =SUMIF(B8:B57,"PZ",F8:F57) -> 0
A11: 026 | B11: AZ | C11: Algemeen Ziekenhuis Sint-Maarten | D11: Antwerpen | E11: Mechelen | F11: 491924.93 | H11: RZ | I11: =SUMIF(B8:B57,"RZ",F8:F57) -> 0
A12: 032 | B12: AZ | C12: AZ Alma | D12: Oost-Vlaanderen | E12: Eeklo | F12: 114188.92 | H12: TOTAAL | I12: =SUM(I8:I11) -> 13613222.72
A13: 049 | B13: AZ | C13: AZ Sint-Jan Brugge | D13: West-Vlaanderen | E13: Brugge | F13: 753434.07
A14: 057 | B14: AZ | C14: Regionaal Ziekenhuis Jan Yperman | D14: West-Vlaanderen | E14: Ieper | F14: 114188.92 | H14: Overzicht per provincie | I14: 2025
A15: 063 | B15: AZ | C15: Algemeen Ziekenhuis Turnhout | D15: Antwerpen | E15: Turnhout | F15: 114188.92 | H15: Antwerpen | I15: =SUMIF(D8:D57,"Antwerpen",F8:F57) -> 4123777.84
A16: 097 | B16: AZ | C16: Heilig Hartziekenhuis | D16: Antwerpen | E16: Lier | F16: 114188.92 | H16: Limburg | I16: =SUMIF(D8:D57,"Limburg",F8:F57) -> 1541889.2
A17: 099 | B17: AZ | C17: Ziekenhuis aan de Stroom | D17: Antwerpen | E17: Antwerpen | F17: 1333208.03 | H17: Oost-Vlaanderen | I17: =SUMIF(D8:D57,"Oost-Vlaanderen",F8:F57) -> 2968305.82
A18: 102 | B18: AZ | C18: Heilig Hartziekenhuis | D18: Antwerpen | E18: Mol | F18: 114188.92 | H18: Vlaams-Brabant | I18: =SUMIF(D8:D57,"Vlaams-Brabant",F8:F57) -> 1362869.53
A19: 104 | B19: AZ | C19: AZ Rivierenland | D19: Antwerpen | E19: Bornem | F19: 114188.92 | H19: West-Vlaanderen | I19: =SUMIF(D8:D57,"West-Vlaanderen",F8:F57) -> 2675097.23
A20: 106 | B20: AZ | C20: Algemeen Ziekenhuis Sint-Maria | D20: Vlaams-Brabant | E20: Halle | F20: 114188.92 | H20: Totaal Vlaanderen | I20: =SUM(I15:I19) -> 12671939.62
A21: 108 | B21: AZ | C21: Regionaal Ziekenhuis Heilig Hart | D21: Vlaams-Brabant | E21: Leuven | F21: 114188.92 | H21: Brussel | I21: =SUMIF(D8:D57,"Brussel",F8:F57) -> 941283.1
A22: 109 | B22: AZ | C22: Algemeen Ziekenhuis Heilig Hart | D22: Vlaams-Brabant | E22: Tienen | F22: 114188.92 | H22: Algemeen totaal | I22: =SUM(I20:I21) -> 13613222.72
A23: 117 | B23: AZ | C23: Algemeen Ziekenhuis Delta | D23: West-Vlaanderen | E23: Roeselare | F23: 404075.9
A24: 124 | B24: AZ | C24: Sint-Jozefskliniek | D24: West-Vlaanderen | E24: Izegem | F24: 114188.92
A25: 126 | B25: AZ | C25: AZORG | D25: Oost-Vlaanderen | E25: Aalst | F25: 718264.82
A26: 134 | B26: AZ | C26: Sint-Vincentiusziekenhuis | D26: Oost-Vlaanderen | E26: Deinze | F26: 114188.92
A27: 140 | B27: AZ | C27: Algemeen Ziekenhuis Sint-Lucas | D27: West-Vlaanderen | E27: Assebroek - Brugge | F27: 114188.92
A28: 143 | B28: UZ | C28: UZ Brussel | D28: Brussel | E28: Jette | F28: 941283.1
A29: 170 | B29: AZ | C29: Algemeen Ziekenhuis Oudenaarde | D29: Oost-Vlaanderen | E29: Oudenaarde | F29: 114188.92
A30: 204 | B30: AZ | C30: Algemeen Ziekenhuis Jan Portaels Vilvoorde | D30: Vlaams-Brabant | E30: Vilvoorde | F30: 114188.92
A31: 217 | B31: AZ | C31: Algemeen Ziekenhuis Sint-Elisabeth | D31: Oost-Vlaanderen | E31: Zottegem | F31: 114188.92
A32: 243 | B32: AZ | C32: Jessa Ziekenhuis A.V. | D32: Limburg | E32: Hasselt | F32: 542566.76
A33: 290 | B33: AZ | C33: AZ Sint-Lucas | D33: Oost-Vlaanderen | E33: Gent | F33: 604075.9
A34: 300 | B34: UZ | C34: UZ Antwerpen | D34: Antwerpen | E34: Edegem | F34: 528377.84
A35: 308 | B35: AZ | C35: Algemeen Ziekenhuis Sint-Elisabeth | D35: Antwerpen | E35: Herentals | F35: 114188.92
A36: 310 | B36: AZ | C36: AZ West | D36: West-Vlaanderen | E36: Veurne | F36: 114188.92
A37: 322 | B37: UZ | C37: UZ Leuven | D37: Vlaams-Brabant | E37: Leuven | F37: 791924.93
A38: 371 | B38: AZ | C38: Ziekenhuis Oost-Limburg | D38: Limburg | E38: Genk | F38: 428377.84
A39: 392 | B39: AZ | C39: Algemeen Ziekenhuis Zeno | D39: West-Vlaanderen | E39: Knokke-Heist | F39: 114188.92
A40: 395 | B40: AZ | C40: Sint-Andriesziekenhuis | D40: West-Vlaanderen | E40: Tielt | F40: 114188.92
A41: 396 | B41: AZ | C41: Algemeen Ziekenhuis Groeninge | D41: West-Vlaanderen | E41: Kortrijk | F41: 604075.9
A42: 397 | B42: AZ | C42: Onze-Lieve-Vrouw van Lourdes Ziekenhuis | D42: West-Vlaanderen | E42: Waregem | F42: 114188.92
A43: 525 | B43: AZ | C43: Algemeen Ziekenhuis Oostende | D43: West-Vlaanderen | E43: Oostende | F43: 114188.92
A44: 536 | B44: AZ | C44: Algemeen Ziekenhuis Voorkempen | D44: Antwerpen | E44: Malle | F44: 114188.92
A45: 550 | B45: AZ | C45: Algemeen Ziekenhuis Glorieux | D45: Oost-Vlaanderen | E45: Ronse | F45: 114188.92
A46: 595 | B46: AZ | C46: AZ VITAZ | D46: Oost-Vlaanderen | E46: Sint-Niklaas | F46: 228377.84
A47: 670 | B47: uz | C47: Universitair Ziekenhuis Gent | D47: Oost-Vlaanderen | E47: Gent | F47: 504075.9
A48: 689 | B48: AZ | C48: Imeldaziekenhuis | D48: Antwerpen | E48: Bonheiden | F48: 314188.92
A49: 709 | B49: AZ | C49: Algemeen Ziekenhuis Sint-Dimpna | D49: Antwerpen | E49: Geel | F49: 114188.92
A50: 710 | B50: AZ | C50: Algemeen Ziekenhuis KLINA | D50: Antwerpen | E50: Brasschaat | F50: 114188.92
A51: 712 | B51: AZ | C51: Algemeen Ziekenhuis Diest | D51: Vlaams-Brabant | E51: Diest | F51: 114188.92
A52: 713 | B52: AZ | C52: Algemeen Ziekenhuis Jan Palfijn | D52: Oost-Vlaanderen | E52: Gent | F52: 114188.92
A53: 714 | B53: AZ | C53: Sint-Franciscusziekenhuis | D53: Limburg | E53: Heusden-Zolder | F53: 114188.92
A54: 715 | B54: AZ | C54: Sint-Trudo ziekenhuis | D54: Limburg | E54: Sint-Truiden | F54: 114188.92
A55: 716 | B55: AZ | C55: Algemeen Ziekenhuis Vesalius | D55: Limburg | E55: Tongeren | F55: 114188.92
A56: 717 | B56: AZ | C56: Ziekenhuis Oost-Limburg Autonome Verzorgingsinstelling | D56: Limburg | E56: Genk | F56: 114188.92
A57: 719 | B57: AZ | C57: Maria Ziekenhuis Noord-Limburg | D57: Limburg | E57: Pelt | F57: 114188.92
A58: Totaal goedgekeurde investeringen | F58: =SUM(F8:F57) -> 13613222.72

Sheet Instandhoudingsforfait
A1: Goedgekeurde projecten instandhoudingsforfait van 1 januari tot 30 november 2025
A2: Instandhoudingsforfait ziekenhuizen: Die financiering moet het voor de ziekenhuizen mogelijk maken om hun bestaande infrastructuur d.m.v. onderhoudsinvesteringen kwalitatief op peil te houden. Het forfait wordt berekend en evolueert op basis van een aantal parameters (bv. aantal operatiekwartieren, aantal bedden) en wordt automatisch uitbetaald zonder aanvraagprocedure. De aanrekening op de VIPA-kredieten gebeurt op het moment van de uitbetaling.
A3: Erk. Nr. | B3: Type | C3: Voorziening | D3: Provincie | E3: Gemeente | F3: 2025 | H3: Organisatietype | I3: 2025
A4: 009 | B4: AZ | C4: Ziekenhuis aan de Stroom | D4: Antwerpen | E4: Antwerpen | F4: 7275269.38 | H4: AZ | I4: =SUMIF(B4:B95,"AZ",F4:F95) -> 93070043.75
A5: 012 | B5: AZ | C5: Algemeen Ziekenhuis Sint-Blasius | D5: Oost-Vlaanderen | E5: Dendermonde | F5: 1896755.58 | H5: UZ | I5: =SUMIF(B4:B95,"UZ",F4:F95) -> 26950902.8
A6: 017 | B6: AZ | C6: Algemeen Ziekenhuis Maria-Middelares | D6: Oost-Vlaanderen | E6: Gent | F6: 1772971.7 | H6: PZ | I6: =SUMIF(B4:B95,"PZ",F4:F95) -> 25590446.9
A7: 026 | B7: AZ | C7: Algemeen Ziekenhuis Sint-Maarten | D7: Antwerpen | E7: Mechelen | F7: 1762392.09 | H7: RZ | I7: =SUMIF(B4:B95,"RZ",F4:F95) -> 3727955.24
A8: 032 | B8: AZ | C8: AZ Alma | D8: Oost-Vlaanderen | E8: Eeklo | F8: 1316188 | H8: TOTAAL | I8: =SUM(I4:I7) -> 149339348.7
A9: 049 | B9: AZ | C9: AZ Sint-Jan Brugge | D9: West-Vlaanderen | E9: Brugge | F9: 3778709.77
A10: 057 | B10: AZ | C10: Regionaal Ziekenhuis Jan Yperman | D10: West-Vlaanderen | E10: Ieper | F10: 2111644.81 | H10: Overzicht per provincie | I10: 2025
A11: 063 | B11: AZ | C11: Algemeen Ziekenhuis Turnhout | D11: Antwerpen | E11: Turnhout | F11: 1977974.99 | H11: Antwerpen | I11: =SUMIF(D4:D95,"Antwerpen",F4:F95) -> 43167932.19
A12: 067 | B12: AZ | C12: AZ Oostende-Serruys | D12: West-Vlaanderen | E12: Oostende | F12: 909174.13 | H12: Limburg | I12: =SUMIF(D4:D95,"Limburg",F4:F95) -> 18639067.84
A13: 097 | B13: AZ | C13: Heilig Hartziekenhuis | D13: Antwerpen | E13: Lier | F13: 2027091.09 | H13: Oost-Vlaanderen | I13: =SUMIF(D4:D95,"Oost-Vlaanderen",F4:F95) -> 35665221.56
A14: 099 | B14: AZ | C14: Ziekenhuis aan de Stroom | D14: Antwerpen | E14: Antwerpen | F14: 4364142.52 | H14: Vlaams-Brabant | I14: =SUMIF(D4:D95,"Vlaams-Brabant",F4:F95) -> 21528062.01
A15: 102 | B15: AZ | C15: Heilig Hartziekenhuis | D15: Antwerpen | E15: Mol | F15: 1050830.16 | H15: West-Vlaanderen | I15: =SUMIF(D4:D95,"West-Vlaanderen",F4:F95) -> 26325922.55
A16: 104 | B16: AZ | C16: AZ Rivierenland | D16: Antwerpen | E16: Bornem | F16: 1427339.02 | H16: Totaal Vlaanderen | I16: =SUM(I11:I15) -> 145326206.1
A17: 106 | B17: AZ | C17: Algemeen Ziekenhuis Sint-Maria | D17: Vlaams-Brabant | E17: Halle | F17: 1530988.07 | H17: Brussel | I17: =SUMIF(D4:D95,"Brussel",F4:F95) -> 4013142.54
A18: 108 | B18: AZ | C18: Regionaal Ziekenhuis Heilig Hart | D18: Vlaams-Brabant | E18: Leuven | F18: 1006725.91 | H18: Algemeen totaal | I18: =SUM(I16:I17) -> 149339348.7
A19: 109 | B19: AZ | C19: Algemeen Ziekenhuis Heilig Hart | D19: Vlaams-Brabant | E19: Tienen | F19: 1059427.97
A20: 117 | B20: AZ | C20: Algemeen Ziekenhuis Delta | D20: West-Vlaanderen | E20: Roeselare | F20: 3740044.99
A21: 124 | B21: AZ | C21: Sint-Jozefskliniek | D21: West-Vlaanderen | E21: Izegem | F21: 976286.07
A22: 126 | B22: AZ | C22: AZORG | D22: Oost-Vlaanderen | E22: Aalst | F22: 3697640.8
A23: 134 | B23: AZ | C23: Sint-Vincentiusziekenhuis | D23: Oost-Vlaanderen | E23: Deinze | F23: 930404.87
A24: 140 | B24: AZ | C24: Algemeen Ziekenhuis Sint-Lucas | D24: West-Vlaanderen | E24: Assebroek - Brugge | F24: 1631251.91
A25: 170 | B25: AZ | C25: Algemeen Ziekenhuis Oudenaarde | D25: Oost-Vlaanderen | E25: Oudenaarde | F25: 480359.43
A26: 176 | B26: AZ | C26: AZORG | D26: Oost-Vlaanderen | E26: Aalst | F26: 2560397.35
A27: 204 | B27: AZ | C27: Algemeen Ziekenhuis Jan Portaels Vilvoorde | D27: Vlaams-Brabant | E27: Vilvoorde | F27: 897943.97
A28: 217 | B28: AZ | C28: Algemeen Ziekenhuis Sint-Elisabeth | D28: Oost-Vlaanderen | E28: Zottegem | F28: 899482.71
A29: 243 | B29: AZ | C29: Jessa Ziekenhuis A.V. | D29: Limburg | E29: Hasselt | F29: 4081738.42
A30: 290 | B30: AZ | C30: AZ Sint-Lucas | D30: Oost-Vlaanderen | E30: Gent | F30: 3035875.79
A31: 308 | B31: AZ | C31: Algemeen Ziekenhuis Sint-Elisabeth | D31: Antwerpen | E31: Herentals | F31: 806387.52
A32: 310 | B32: AZ | C32: AZ West | D32: West-Vlaanderen | E32: Veurne | F32: 613973.08
A33: 371 | B33: AZ | C33: Ziekenhuis Oost-Limburg | D33: Limburg | E33: Genk | F33: 4318032.72
A34: 392 | B34: AZ | C34: Algemeen Ziekenhuis Zeno | D34: West-Vlaanderen | E34: Knokke-Heist | F34: 718547.07
A35: 395 | B35: AZ | C35: Sint-Andriesziekenhuis | D35: West-Vlaanderen | E35: Tielt | F35: 939208.98
A36: 396 | B36: AZ | C36: Algemeen Ziekenhuis Groeninge | D36: West-Vlaanderen | E36: Kortrijk | F36: 3564461.9
A37: 397 | B37: AZ | C37: Onze-Lieve-Vrouw van Lourdes Ziekenhuis | D37: West-Vlaanderen | E37: Waregem | F37: 628535.71
A38: 525 | B38: AZ | C38: Algemeen Ziekenhuis Oostende | D38: West-Vlaanderen | E38: Oostende | F38: 1385970.52
A39: 536 | B39: AZ | C39: Algemeen Ziekenhuis Voorkempen | D39: Antwerpen | E39: Malle | F39: 818584.09
A40: 550 | B40: AZ | C40: Algemeen Ziekenhuis Glorieux | D40: Oost-Vlaanderen | E40: Ronse | F40: 1210518.95
A41: 595 | B41: AZ | C41: AZ VITAZ | D41: Oost-Vlaanderen | E41: Sint-Niklaas | F41: 3295288.42
A42: 682 | B42: AZ | C42: Algemeen Ziekenhuis Monica | D42: Antwerpen | E42: Deurne | F42: 2321554.23
A43: 689 | B43: AZ | C43: Imeldaziekenhuis | D43: Antwerpen | E43: Bonheiden | F43: 2214892.38
A44: 709 | B44: AZ | C44: Algemeen Ziekenhuis Sint-Dimpna | D44: Antwerpen | E44: Geel | F44: 1387713.16
A45: 710 | B45: AZ | C45: Algemeen Ziekenhuis KLINA | D45: Antwerpen | E45: Brasschaat | F45: 2659997.9
A46: 712 | B46: AZ | C46: Algemeen Ziekenhuis Diest | D46: Vlaams-Brabant | E46: Diest | F46: 999224.3
A47: 713 | B47: AZ | C47: Algemeen Ziekenhuis Jan Palfijn | D47: Oost-Vlaanderen | E47: Gent | F47: 907505.41
A48: 714 | B48: AZ | C48: Sint-Franciscusziekenhuis | D48: Limburg | E48: Heusden-Zolder | F48: 761291.07
A49: 715 | B49: AZ | C49: Sint-Trudo ziekenhuis | D49: Limburg | E49: Sint-Truiden | F49: 1310791.9
A50: 716 | B50: AZ | C50: Algemeen Ziekenhuis Vesalius | D50: Limburg | E50: Tongeren | F50: 1400528.24
A51: 717 | B51: AZ | C51: Ziekenhuis Oost-Limburg Autonome Verzorgingsinstelling | D51: Limburg | E51: Genk | F51: 812617.08
A52: 719 | B52: AZ | C52: Maria Ziekenhuis Noord-Limburg | D52: Limburg | E52: Pelt | F52: 1795367.62
A53: 143 | B53: UZ | C53: UZ Brussel | D53: Brussel | E53: Jette | F53: 3913049.15
A54: 300 | B54: UZ | C54: UZ Antwerpen | D54: Antwerpen | E54: Edegem | F54: 4652719
A55: 322 | B55: UZ | C55: UZ Leuven | D55: Vlaams-Brabant | E55: Leuven | F55: 11478963.99
A56: 670 | B56: UZ | C56: Universitair Ziekenhuis Gent | D56: Oost-Vlaanderen | E56: Gent | F56: 6906170.66
A57: 528 | B57: PZ | C57: Psychiatrisch Ziekenhuis Heilige Familie | D57: West-Vlaanderen | E57: Kortrijk | F57: 326453.29
A58: 900 | B58: PZ | C58: Fusieziekenhuis Psychiatrisch Centrum Dr. Guislain | D58: Oost-Vlaanderen | E58: Gent | F58: 872595.98
A59: 901 | B59: PZ | C59: Kliniek Sint-Jozef, Centrum voor Psychiatrie en Psychotherapie | D59: West-Vlaanderen | E59: Pittem | F59: 543797.44
A60: 902 | B60: PZ | C60: Multiversum | D60: Antwerpen | E60: Boechout | F60: 1582562.53
A61: 909 | B61: PZ | C61: OPZC Rekem | D61: Limburg | E61: Rekem Lanaken | F61: 1074480.73
A62: 911 | B62: PZ | C62: PZ Frapello | D62: Oost-Vlaanderen | E62: Zottegem | F62: 570494.19
A63: 918 | B63: PZ | C63: Psychiatrisch Ziekenhuis en Revalidatiecentrum Sint-Hiëronymus | D63: Oost-Vlaanderen | E63: Sint-Niklaas | F63: 634106.8
A64: 937 | B64: PZ | C64: Psychiatrisch Ziekenhuis Bethaniënhuis | D64: Antwerpen | E64: Zoersel | F64: 1466540.8
A65: 939 | B65: PZ | C65: Openbaar Psychiatrisch Zorgcentrum Geel | D65: Antwerpen | E65: Geel | F65: 2037489.43
A66: 942 | B66: PZ | C66: Psychiatrische Kliniek Sint-Annendael | D66: Vlaams-Brabant | E66: Diest | F66: 302076.94
A67: 943 | B67: PZ | C67: Z.org KU Leuven | D67: Vlaams-Brabant | E67: Kortenberg | F67: 756582.34
A68: 944 | B68: PZ | C68: Psychiatrische Kliniek Sint-Alexius | D68: Vlaams-Brabant | E68: Grimbergen | F68: 467306.13
A69: 947 | B69: PZ | C69: Psychiatrische Kliniek Broeders Alexianen | D69: Vlaams-Brabant | E69: Tienen | F69: 906282.71
A70: 952 | B70: PZ | C70: Zorggroep Myna Psychiatrisch Ziekenhuis Bilzen-Hoeselt | D70: Limburg | E70: Bilzen | F70: 945619.85
A71: 956 | B71: PZ | C71: PZ St Jan | D71: Oost-Vlaanderen | E71: Eeklo | F71: 532700.74
A72: 959 | B72: PZ | C72: Psychiatrisch Centrum Caritas | D72: Oost-Vlaanderen | E72: Melle | F72: 934139.34
A73: 960 | B73: PZ | C73: PZ Sint-Lucia | D73: Oost-Vlaanderen | E73: Sint-Niklaas | F73: 800206.29
A74: 961 | B74: PZ | C74: Psychiatrisch Ziekenhuis Heilig Hart | D74: West-Vlaanderen | E74: Ieper | F74: 655508.26
A75: 962 | B75: PZ | C75: Psychiatrisch Centrum Onze-Lieve-Vrouw van Vrede | D75: West-Vlaanderen | E75: Menen | F75: 528647.32
A76: 963 | B76: PZ | C76: Psychiatrisch Ziekenhuis Onze-Lieve-Vrouw | D76: West-Vlaanderen | E76: Brugge | F76: 1051805.97
A77: 970 | B77: PZ | C77: Psychiatrisch Ziekenhuis Duffel | D77: Antwerpen | E77: Duffel | F77: 1547450.5
A78: 975 | B78: PZ | C78: Universitair Psychiatrisch Centrum Sint-Kamillus | D78: Vlaams-Brabant | E78: Bierbeek | F78: 1129770.81
A79: 978 | B79: PZ | C79: Psychiatrisch Centrum Sint-Jan Baptist | D79: Oost-Vlaanderen | E79: Zelzate | F79: 547757.03
A80: 982 | B80: PZ | C80: Psychiatrisch Centrum Sint-Amandus | D80: West-Vlaanderen | E80: Beernem | F80: 1228096.55
A81: 987 | B81: PZ | C81: Psychotherapeutisch Centrum Rustenburg | D81: West-Vlaanderen | E81: Brugge | F81: 60152.31
A82: 988 | B82: PZ | C82: Psychiatrisch Ziekenhuis Ariadne | D82: Oost-Vlaanderen | E82: Lede | F82: 606343.52
A83: 989 | B83: PZ | C83: Kinderpsychiatrisch Centrum Genk | D83: Limburg | E83: Genk | F83: 18924.43
A84: 991 | B84: PZ | C84: Zorggroep Myna Psychiatrisch Ziekenhuis Sint-Truiden | D84: Limburg | E84: Sint-Truiden | F84: 1594843.51
A85: 992 | B85: PZ | C85: Psychiatrische Centra Gent - Sleidinge | D85: Oost-Vlaanderen | E85: Gent | F85: 938026.08
A86: 997 | B86: PZ | C86: PSC Elsene | D86: Brussel | E86: Brussel | F86: 100093.39
A87: 998 | B87: PZ | C87: Psychiatrisch Ziekenhuis Stuivenberg | D87: Antwerpen | E87: Antwerpen | F87: 829591.69
A88: 046 | B88: RZ | C88: Verpleeginrichting De Dennen | D88: Antwerpen | E88: Malle | F88: 188136.3
A89: 095 | B89: RZ | C89: Zorgband Leie & Schelde | D89: Oost-Vlaanderen | E89: Merelbeke | F89: 319291.92
A90: 116 | B90: RZ | C90: Revalidatie & MS Centrum | D90: Limburg | E90: Pelt | F90: 524832.27
A91: 236 | B91: RZ | C91: Revalidatieziekenhuis ReVarte | D91: Antwerpen | E91: Edegem | F91: 769273.41
A92: 499 | B92: RZ | C92: Ziekenhuis Inkendaal-Koninklijke Instelling | D92: Vlaams-Brabant | E92: Vlezenbeek | F92: 557759.24
A93: 676 | B93: RZ | C93: Koningin Elisabeth Instituut (KEI) | D93: West-Vlaanderen | E93: Oostduinkerke | F93: 473410.04
A94: 679 | B94: RZ | C94: Revalidatieziekenhuis IMBO | D94: West-Vlaanderen | E94: Oostende | F94: 460242.43
A95: 693 | B95: RZ | C95: Multiple Sclerose Kliniek | D95: Vlaams-Brabant | E95: Melsbroek | F95: 435009.63
A96: Totaal goedgekeurde investeringen | F96: =SUM(F4:F95) -> 149339348.7

Sheet Blad16 (hidden)

Sheet Blad17 (hidden)

Sheet Blad1 (hidden)
